Workbook

Sheet READ ME
D11: Read Me Sheet
D16: INVEST – Payback Tool
D18: Introduction
D19: This tool allows for a comparative assessment between income and three different irrigation pumping options. Information required for using this tool includes investment and operational costs for the different pumping systems, anticipated income from agricultural production and basic economic conditions (e.g. inflation rate). An alternative tool is available under:
D24: http://www.fao.org/energy/agrifood-chains/power-irrigation-tool/en/
D26: Tips & Tricks
D37: Overview
D38: This tool comprises the following sheets:
D40: 1. Input | G40: for data entry of anticipated income and expenditure for pumping and irrigation technology
D43: 2. Output | G43: for analysis of results automatically generated from Input sheet
D46: About
D47: Published by: | F47: GIZ & FAO
D48: Responsible: | F48: GIZ project Sustainable Energy for Food - Powering Agriculture
D50: Contact: | F50: Powering.Agriculture@giz.de
D51: Download link: | F51: https://energypedia.info/wiki/Toolbox_on_SPIS
D52: About: | F52: Powering Agriculture: An Energy Grand Challenge for Development. Available at:
F54: https://poweringag.org
D55: Version: | F55: 1.1 (May 2018)
D57: The Toolbox on Solar Powered Irrigation Systems is made possible through the global initiative Powering Agriculture: An Energy Grand Challenge for Development (PAEGC). In 2012, the United States Agency for International Development (USAID), the Swedish International Development Cooperation Agency (Sida), the German Federal Ministry for Economic Cooperation and Development (BMZ), Duke Energy, and the Overseas Private Investment Cooperation (OPIC) combined resources to create the PAEGC initiative. The objective of PAEGC is to support new and sustainable approaches to accelerate the development and deployment of clean energy solutions for increasing agriculture productivity and/or value for farmers and agribusinesses in developing countries and emerging regions that lack access to reliable, affordable clean energy.
D70: The designations employed and the presentation of material in this information product do not imply the expression of any opinion whatsoever on the part of Deutsche Gesellschaft für Internationale Zusammenarbeit (GIZ) GmbH, Food and Agriculture Organization of the United Nations (FAO) or any of the PAEGC Founding Partners concerning the legal or development status of any country, territory, city or area or of its authorities, or concerning the delimitation of its frontiers or boundaries. The mention of specific companies or products of manufacturers, whether or not these have been patented, does not imply that these have been endorsed or recommended by GIZ, FAO, or any of the PAEGC Founding Partners in preference to others of a similar nature that are not mentioned. The views expressed in this information product are those of the author and do not necessarily reflect the views or policies of GIZ, FAO, or any of the PAEGC Founding Partners.
D85: GIZ, FAO and the PAEGC Founding Partners encourage the use, reproduction and dissemination of material in this information product. Except where otherwise indicated, material may be copied, downloaded and printed for private study, research and teaching purposes, or for use in non-commercial products or services, provided that appropriate acknowledgement of GIZ and FAO as the source and copyright holder is given.
D93: © GIZ and FAO, 2017

Sheet Input
B1: INVEST - Payback Tool
B3: This INPUT sheet requires entry of values, which then serve the results displayed in the next OUTPUT sheet.
B6: Basic assumptions
B8: Currency used for calculation: | E8: KES | F8: use any currency
B10: Inflation | E10: 0.115 | F10: the national percentage rate for the devaluation of money per year (provided by national statistics)
B12: Discount rate | E12: 0.16 | F12: the annual rate used to determine the present value of future cash flows (Tip: simplified discount rate is often equal to interest rate earned from bank savings or treasury bonds)
B14: Annual profit margin increase | E14: 0.1 | F14: the rate at which the farmer will increase prices every year (calculated as per own records)
B16: Annual fuel price increase | E16: 0.0384 | F16: the rate at which the fuel (Diesel, petrol or LPG) will increase every year (as provided by national regulator or from national energy statistics)
B18: Annual electricity price increase | E18: 0.08 | F18: the rate at which the grid electricity prices will increase every year (provided by national electricity regulator or utility)
B20: Total maximum water pumped per day | E20: 26 | F20: m³ per day | G20: (as calculated in SAFEGUARD WATER-Water Requirement Tool or provided by pump supplier)
B22: Income: Gross Farm Profit per year | E22: 594320 | F22: =E8 -> KES | G22: per year (as calculated in INVEST-Farm Analysis Tool or from own records)
B24: Proportion of Profit to invest | E24: 0.5 | F24: % of profit made available for investment into water pumping system
B28: Cost assumptions for: | D28: Solar powered irrigation system
E31: ="Price in "& E8 -> Price in KES | G31: Component lifespan
C32: Solar panels | E32: 400000 | G32: 20 | H32: Years
C33: Mounting Structures | H33: Years
C34: Control unit | E34: 50000 | G34: 5 | H34: Years
B35: Initial Capital Costs | C35: Pump | E35: 200000 | G35: 7 | H35: Years
C36: Wires / tubes | E36: 50000 | G36: 5 | H36: Years
C37: Water storage | E37: 55000 | F37: =IF($E$8="","",$E$8) -> KES | G37: 20 | H37: Years
C38: Irrigation system | E38: 80000 | F38: KES | G38: 5 | H38: Years
C39: Drilling | F39: KES
C40: Installation | E40: 25000 | F40: KES | G40: Subsidy
C41: Other costs | F41: KES | G41: Subsidy amount on Capital Costs | K41: =E8 -> KES
C42: Totals costs | E42: =SUM(E32:E41)-J41 -> 860000 | F42: KES
B45: Running costs | C45: Maintenance costs per year: | E45: 6000
C46: Operational costs per year: | F46: =IF($E$8="","",$E$8) -> KES
C48: Total costs per year: | E48: =SUM(E44:E46) -> 6000 | F48: =IF($E$8="","",$E$8) -> KES
C51: Loan amount | F51: =IF($E$8="","",$E$8) -> KES
B52: Loan | C52: Interest Rate
C53: Investment Period | F53: Years
C54: Name of Bank
B58: Cost assumptions for: | D58: Grid powered irrigation system
E61: ="Price in "& E8 -> Price in KES | G61: Component lifespan
C62: Inverter (if pump is DC) | H62: Years
C63: Control unit | H63: Years
B64: Initial Capital Costs | C64: Pump | E64: 150000 | G64: 7 | H64: Years
C65: Wires / tubes | E65: 50000 | G65: 5 | H65: Years
C66: Water storage | E66: 55000 | F66: =IF($E$8="","",$E$8) -> KES | G66: 20 | H66: Years
C67: Irrigation system | E67: 80000 | F67: KES | G67: 5 | H67: Years
C68: Drilling | F68: KES
C69: Installation | E69: 15000 | F69: KES | G69: Subsidy
C70: Other costs | F70: KES | G70: Subsidy amount on Capital Costs | K70: =E13 -> 0
C71: Total costs | E71: =SUM(E62:E70)-J70 -> 350000 | F71: KES
G74: Assumptions Grid Connection costs
C75: Electricity costs per year: | E75: =J84 -> 13474.5 | F75: =IF($E$8="","",$E$8) -> KES
B76: Running costs | C76: Maintenance costs per year: | E76: 5000 | F76: =IF($E$8="","",$E$8) -> KES | G76: Pump's power demand: | J76: 0.75 | K76: kW
C77: Operational costs per year: | F77: =IF($E$8="","",$E$8) -> KES | G77: Daily water requirement: | J77: =E20 -> 26 | K77: m³/day
G78: Volume flow m³/hour: | J78: 6 | K78: m³/hour
C79: Total costs per year: | E79: =SUM(E75:E77) -> 18474.5 | F79: =IF($E$8="","",$E$8) -> KES | G79: kWh needed per day: | J79: =(J77/J78)*J76 -> 3.25 | K79: kWh
G80: Yearly irrigation days: | J80: 200 | K80: days/year
G81: kWh needed per year: | J81: =J80*J79 -> 650 | K81: kWh
G82: Cost kWh: | J82: 20.73 | K82: =IF($E$8="","",$E$8) & "/kWh" -> KES/kWh
C83: Loan amount | F83: =IF($E$8="","",$E$8) -> KES | G83: Basic monthly connection fee | K83: =IF($E$8="","",$E$8) & "/month" -> KES/month
B84: Loan | C84: Interest Rate | G84: Electricity cost per year: | J84: =(J82*J81)+(J83*12) -> 13474.5 | K84: =E8 -> KES
C85: Investment Period | F85: Years
C86: Name of Bank
B90: Cost assumptions for: | D90: Diesel powered irrigation system
J92: CO2 - Emissions per year:
E93: ="Price in "& E8 -> Price in KES | G93: Component lifespan | I93: Diesel | J93: =VLOOKUP(I93,I95:J97,2,FALSE)*J112 -> 2288 | K93: kg/year
C94: Generator | E94: 150000 | F94: =IF($E$8="","",$E$8) -> KES | G94: 3 | H94: Years | I94: Emission factor:
B95: Initial Capital Costs | C95: Pump | E95: 150000 | F95: KES | G95: 5 | H95: Years | I95: Diesel | J95: 2.64 | K95: kg of CO2/liter
C96: Wires / tubes | E96: 50000 | F96: KES | G96: 5 | H96: Years | I96: Petrol | J96: 2.39 | K96: kg of CO2/liter
C97: Water storage | E97: 55000 | F97: KES | G97: 20 | H97: Years | I97: LPG | J97: 1.67 | K97: kg of CO2/liter
C98: Irrigation system | E98: 80000 | F98: KES | G98: 5 | H98: Years
C99: Drilling | F99: KES
C100: Installation | E100: 25000 | F100: KES | G100: Subsidy
C101: Other costs | F101: KES | G101: Subsidy amount on Capital Costs | K101: =E15 -> 0
C102: Total costs | E102: =SUM(E92:E101) -> 510000 | F102: KES
G105: Assumptions Fuel Costs
C106: Fuel costs per year: | E106: =J114 -> 68466.66667 | F106: =IF($E$8="","",$E$8) -> KES
B107: Running costs | C107: Maintenance costs per year: | E107: 30000 | F107: =IF($E$8="","",$E$8) -> KES | G107: Pump's fuel demand: | J107: 1 | K107: l/hour
C108: Operational costs per year: | F108: =IF($E$8="","",$E$8) -> KES | G108: Daily water requirement: | J108: =E20 -> 26 | K108: m³/day
G109: Volume flow m³/hour: | J109: 6 | K109: m³/hour
C110: Total costs per year: | E110: =SUM(E106:E108) -> 98466.66667 | F110: =IF($E$8="","",$E$8) -> KES | G110: Fuel needed per day: | J110: =(J108/J109)*J107 -> 4.333333333 | K110: l/day
G111: Yearly irrigation days: | J111: 200 | K111: days/year
G112: Fuel needed per year: | J112: =J111*J110 -> 866.6666667 | K112: l/year
G113: Cost Fuel | J113: 79 | K113: =IF($E$8="","",$E$8) & "/l" -> KES/l
C114: Loan amount | F114: =IF($E$8="","",$E$8) -> KES | G114: Fuel cost per year: | J114: =J113*J112 -> 68466.66667 | K114: =IF($E$8="","",$E$8) -> KES
B115: Loan | C115: Interest Rate
C116: Investment Period | F116: Years
C117: Name of Bank

Sheet Output
I1: INVEST – Payback Tool
I3: This OUTPUT sheet summarises the results as per the entries in the afore completed INPUT sheet.
J5: Basic assumptions
J7: Total water need per day | M7: =Input!E20 & " m³ per day" -> 26 m³ per day | T7: Note:
B8: Click to remove/add from analysis: | S8: If "not feasible" is displayed for the Internal Rate of Return (IRR) then the IRR value is below 0%.
J9: Total income per year | M9: =TEXT(Input!E22,"#.##0") &" " & Input!E8 -> 594.320 KES | N9: (in Year 1)
J11: Total investment amount per year | M11: =TEXT(Input!E22,"#.##0")*Input!E24 &" " & Input!E8 -> 297160 KES | N11: (in Year 1) | S11: If a negative (-) Net Present Value (NPV) is displayed then the investment is not feasible.
J13: Inflation | M13: =Input!E10 -> 0.115
J15: Discount rate | M15: =Input!E12 -> 0.16
J17: Annual profit margin increase | M17: =Input!E14 -> 0.1
J19: Annual fuel price increase | M19: =Input!E16 -> 0.0384
B22: ="Analysis for " &Input!D28 -> Analysis for Solar powered irrigation system | J22: ="Analysis for " &Input!D58 -> Analysis for Grid powered irrigation system | R22: ="Analysis for " &Input!D90 -> Analysis for Diesel powered irrigation system
B24: Internal Rate of Return (IRR) | E24: =IFERROR('Cashflow Calculation'!C51,"not feasible") -> 0.3819574298 | J24: Internal Rate of Return (IRR) | M24: =IFERROR('Cashflow Calculation'!C89,"not feasible") -> 0.8641154094 | R24: Internal Rate of Return (IRR) | U24: =IFERROR('Cashflow Calculation'!C155,"not feasible") -> 0.3135212993
B26: Net Present Value (NPV) | E26: =TEXT('Cashflow Calculation'!C50,"#.##0") & " " &Input!E8 -> 7.780.728 KES | J26: Net Present Value (NPV) | M26: =TEXT('Cashflow Calculation'!C88,"#.##0") &" " &Input!E8 -> 11.813.210 KES | R26: Net Present Value (NPV) | U26: =TEXT('Cashflow Calculation'!C154,"#.##0") &" " &Input!E8 -> 2.749.219 KES
B28: Accumulated cash flow after Year 25 | E28: =TEXT('Cashflow Calculation'!S186,"#.##0") &" " &Input!E8 -> 14.206.993 KES | J28: Accumulated cash flow after Year 25 | M28: =TEXT('Cashflow Calculation'!S187,"#.##0") &" " &Input!E8 -> 19.903.696 KES | R28: Accumulated cash flow after Year 25 | U28: =TEXT('Cashflow Calculation'!S188,"#.##0") &" " &Input!E8 -> 5.459.365 KES
B30: System Life Cycle Costs (25 years) | E30: =TEXT('Cashflow Calculation'!B45,"#.##0") &" " &Input!E8 -> 15.017.819 KES | J30: System Life Cycle Costs (25 years) | M30: =TEXT('Cashflow Calculation'!B83,"#.##0") &" " &Input!E8 -> 9.321.116 KES | R30: System Life Cycle Costs (25years) | U30: =TEXT('Cashflow Calculation'!B149,"#.##0") &" " &Input!E8 -> 23765447.581 KES
B32: Years for payback | E32: ='Cashflow Calculation'!B43 -> 3 | J32: Years for payback | M32: ='Cashflow Calculation'!B81 -> 2 | R32: Years for payback | U32: ='Cashflow Calculation'!B147 -> 4
B34: Lending Bank: | E34: =IF(Input!E54=0,"",Input!E54) ->  | J34: Lending Bank: | M34: =IF(Input!E86=0,"",Input!E86) ->  | R34: Lending Bank: | U34: =IF(Input!E117=0,"",Input!E117) -> 
B36: Yearly loan Repayment: | E36: =TEXT('Loan Repayment Solar'!Scheduled_Monthly_Payment,"#.##0") &" " &Input!E8 -> .0 KES | J36: Yearly loan Repayment: | M36: =TEXT('Loan Repayment Grid'!Scheduled_Monthly_Payment,"#.##0") &" " &Input!E8 -> .0 KES | R36: Yearly loan Repayment: | U36: =TEXT('Loan Repayment Diesel'!Scheduled_Monthly_Payment,"#.##0") &" " &Input!E8 -> .0 KES
R38: =Input!J92 -> CO2 - Emissions per year: | U38: =Input!J93 -> 2288 | V38: =Input!K93 -> kg/year

Sheet Cashflow Calculation (hidden)
A1: Annual profit margin increase: | B1: =Input!E14 -> 0.1
A2: Inflation rate: | B2: =Input!E10 -> 0.115
A3: Income-Gross farm profit/year: | B3: =Input!E22 -> 594320 | C3: =IF(Input!$E$8="","",Input!$E$8) -> KES
A4: Percentage profit to invest | B4: =Input!E24 -> 0.5
A5: Fuel price increase/year: | B5: =Input!E16 -> 0.0384
A6: Electricity price increase/year: | B6: =Input!E18 -> 0.08
A7: Discount rate | B7: =Input!E12 -> 0.16
A8: Total water need per day | B8: =Input!E20 -> 26 | C8: =Input!F20 -> m³ per day
C10: year | D10: 0 | E10: 1 | F10: 2 | G10: 3 | H10: 4 | I10: 5 | J10: 6 | K10: 7 | L10: 8 | M10: 9 | N10: 10 | O10: 11 | P10: 12 | Q10: 13 | R10: 14 | S10: 15 | T10: 16 | U10: 17 | V10: 18 | W10: 19 | X10: 20 | Y10: 21 | Z10: 22 | AA10: 23 | AB10: 24 | AC10: 25
C11: =IF(Input!$E$8="","",Input!$E$8) -> KES | D11: 0 | E11: =B3*B4 -> 297160 | F11: =E11*(1+(1*$B$1)) -> 326876 | G11: =F11*(1+(1*$B$1)) -> 359563.6 | H11: =G11*(1+(1*$B$1)) -> 395519.96 | I11: 435071.956 | J11: 478579.1516 | K11: 526437.0668 | L11: 579080.7734 | M11: 636988.8508 | N11: 700687.7359 | O11: 770756.5094 | P11: 847832.1604 | Q11: 932615.3764 | R11: 1025876.914 | S11: 1128464.605 | T11: 1241311.066 | U11: 1365442.173 | V11: 1501986.39 | W11: 1652185.029 | X11: 1817403.532 | Y11: 1999143.885 | Z11: 2199058.273 | AA11: 2418964.101 | AB11: 2660860.511 | AC11: 2926946.562
A12: Capital investment per year:
A13: TRUE | C13: accumulated | D13: =IF($A$13=TRUE,D14,NA()) -> 0 | E13: =IF($A$13=TRUE,E14,NA()) -> 297160 | F13: =IF($A$13=TRUE,F14,NA()) -> 624036 | G13: 983599.6 | H13: 1379119.56 | I13: 1814191.516 | J13: 2292770.668 | K13: 2819207.734 | L13: 3398288.508 | M13: 4035277.359 | N13: 4735965.094 | O13: 5506721.604 | P13: 6354553.764 | Q13: 7287169.141 | R13: 8313046.055 | S13: 9441510.66 | T13: 10682821.73 | U13: 12048263.9 | V13: 13550250.29 | W13: 15202435.32 | X13: 17019838.85 | Y13: 19018982.73 | Z13: 21218041.01 | AA13: 23637005.11 | AB13: 26297865.62 | AC13: 29224812.18
D14: 0 | E14: =SUM(E11) -> 297160 | F14: =SUM($E$11:F11) -> 624036 | G14: =SUM($E$11:G11) -> 983599.6 | H14: =SUM($E$11:H11) -> 1379119.56 | I14: =SUM($E$11:I11) -> 1814191.516 | J14: =SUM($E$11:J11) -> 2292770.668 | K14: =SUM($E$11:K11) -> 2819207.734 | L14: =SUM($E$11:L11) -> 3398288.508 | M14: =SUM($E$11:M11) -> 4035277.359 | N14: =SUM($E$11:N11) -> 4735965.094 | O14: =SUM($E$11:O11) -> 5506721.604 | P14: =SUM($E$11:P11) -> 6354553.764 | Q14: =SUM($E$11:Q11) -> 7287169.141 | R14: =SUM($E$11:R11) -> 8313046.055 | S14: =SUM($E$11:S11) -> 9441510.66 | T14: =SUM($E$11:T11) -> 10682821.73 | U14: =SUM($E$11:U11) -> 12048263.9 | V14: =SUM($E$11:V11) -> 13550250.29 | W14: =SUM($E$11:W11) -> 15202435.32 | X14: =SUM($E$11:X11) -> 17019838.85 | Y14: =SUM($E$11:Y11) -> 19018982.73 | Z14: =SUM($E$11:Z11) -> 21218041.01 | AA14: =SUM($E$11:AA11) -> 23637005.11 | AB14: =SUM($E$11:AB11) -> 26297865.62 | AC14: =SUM($E$11:AC11) -> 29224812.18
A20: =Input!D28 -> Solar powered irrigation system
A23: =Input!C32 -> Solar panels | C23: =IF(Input!$E$8="","",Input!$E$8) -> KES | D23: =Input!E32 -> 400000 | E23: =IF(MOD(E10,Input!$G$32)=0,($D$23*(1+$B$2)^E10),0) -> 0 | F23: =IF(MOD(F10,Input!$G$32)=0,($D$23*(1+$B$2)^F10),0) -> 0 | G23: =IF(MOD(G10,Input!$G$32)=0,($D$23*(1+$B$2)^G10),0) -> 0 | H23: =IF(MOD(H10,Input!$G$32)=0,($D$23*(1+$B$2)^H10),0) -> 0 | I23: =IF(MOD(I10,Input!$G$32)=0,($D$23*(1+$B$2)^I10),0) -> 0 | J23: =IF(MOD(J10,Input!$G$32)=0,($D$23*(1+$B$2)^J10),0) -> 0 | K23: =IF(MOD(K10,Input!$G$32)=0,($D$23*(1+$B$2)^K10),0) -> 0 | L23: =IF(MOD(L10,Input!$G$32)=0,($D$23*(1+$B$2)^L10),0) -> 0 | M23: =IF(MOD(M10,Input!$G$32)=0,($D$23*(1+$B$2)^M10),0) -> 0 | N23: =IF(MOD(N10,Input!$G$32)=0,($D$23*(1+$B$2)^N10),0) -> 0 | O23: =IF(MOD(O10,Input!$G$32)=0,($D$23*(1+$B$2)^O10),0) -> 0 | P23: =IF(MOD(P10,Input!$G$32)=0,($D$23*(1+$B$2)^P10),0) -> 0 | Q23: =IF(MOD(Q10,Input!$G$32)=0,($D$23*(1+$B$2)^Q10),0) -> 0 | R23: =IF(MOD(R10,Input!$G$32)=0,($D$23*(1+$B$2)^R10),0) -> 0 | S23: =IF(MOD(S10,Input!$G$32)=0,($D$23*(1+$B$2)^S10),0) -> 0 | T23: =IF(MOD(T10,Input!$G$32)=0,($D$23*(1+$B$2)^T10),0) -> 0 | U23: =IF(MOD(U10,Input!$G$32)=0,($D$23*(1+$B$2)^U10),0) -> 0 | V23: =IF(MOD(V10,Input!$G$32)=0,($D$23*(1+$B$2)^V10),0) -> 0 | W23: =IF(MOD(W10,Input!$G$32)=0,($D$23*(1+$B$2)^W10),0) -> 0 | X23: =IF(MOD(X10,Input!$G$32)=0,($D$23*(1+$B$2)^X10),0) -> 3528233.661 | Y23: =IF(MOD(Y10,Input!$G$32)=0,($D$23*(1+$B$2)^Y10),0) -> 0 | Z23: =IF(MOD(Z10,Input!$G$32)=0,($D$23*(1+$B$2)^Z10),0) -> 0 | AA23: =IF(MOD(AA10,Input!$G$32)=0,($D$23*(1+$B$2)^AA10),0) -> 0 | AB23: =IF(MOD(AB10,Input!$G$32)=0,($D$23*(1+$B$2)^AB10),0) -> 0 | AC23: =IF(MOD(AC10,Input!$G$32)=0,($D$23*(1+$B$2)^AC10),0) -> 0
A24: =Input!C34 -> Control unit | C24: =IF(Input!$E$8="","",Input!$E$8) -> KES | D24: =Input!E34 -> 50000 | E24: =IF(MOD(E10,Input!$G$34)=0,($D$24*(1+$B$2)^E10),0) -> 0 | F24: =IF(MOD(F10,Input!$G$34)=0,($D$24*(1+$B$2)^F10),0) -> 0 | G24: =IF(MOD(G10,Input!$G$34)=0,($D$24*(1+$B$2)^G10),0) -> 0 | H24: =IF(MOD(H10,Input!$G$34)=0,($D$24*(1+$B$2)^H10),0) -> 0 | I24: =IF(MOD(I10,Input!$G$34)=0,($D$24*(1+$B$2)^I10),0) -> 86167.66833 | J24: =IF(MOD(J10,Input!$G$34)=0,($D$24*(1+$B$2)^J10),0) -> 0 | K24: =IF(MOD(K10,Input!$G$34)=0,($D$24*(1+$B$2)^K10),0) -> 0 | L24: =IF(MOD(L10,Input!$G$34)=0,($D$24*(1+$B$2)^L10),0) -> 0 | M24: =IF(MOD(M10,Input!$G$34)=0,($D$24*(1+$B$2)^M10),0) -> 0 | N24: =IF(MOD(N10,Input!$G$34)=0,($D$24*(1+$B$2)^N10),0) -> 148497.3413 | O24: =IF(MOD(O10,Input!$G$34)=0,($D$24*(1+$B$2)^O10),0) -> 0 | P24: =IF(MOD(P10,Input!$G$34)=0,($D$24*(1+$B$2)^P10),0) -> 0 | Q24: =IF(MOD(Q10,Input!$G$34)=0,($D$24*(1+$B$2)^Q10),0) -> 0 | R24: =IF(MOD(R10,Input!$G$34)=0,($D$24*(1+$B$2)^R10),0) -> 0 | S24: =IF(MOD(S10,Input!$G$34)=0,($D$24*(1+$B$2)^S10),0) -> 255913.3931 | T24: =IF(MOD(T10,Input!$G$34)=0,($D$24*(1+$B$2)^T10),0) -> 0 | U24: =IF(MOD(U10,Input!$G$34)=0,($D$24*(1+$B$2)^U10),0) -> 0 | V24: =IF(MOD(V10,Input!$G$34)=0,($D$24*(1+$B$2)^V10),0) -> 0 | W24: =IF(MOD(W10,Input!$G$34)=0,($D$24*(1+$B$2)^W10),0) -> 0 | X24: =IF(MOD(X10,Input!$G$34)=0,($D$24*(1+$B$2)^X10),0) -> 441029.2076 | Y24: =IF(MOD(Y10,Input!$G$34)=0,($D$24*(1+$B$2)^Y10),0) -> 0 | Z24: =IF(MOD(Z10,Input!$G$34)=0,($D$24*(1+$B$2)^Z10),0) -> 0 | AA24: =IF(MOD(AA10,Input!$G$34)=0,($D$24*(1+$B$2)^AA10),0) -> 0 | AB24: =IF(MOD(AB10,Input!$G$34)=0,($D$24*(1+$B$2)^AB10),0) -> 0 | AC24: =IF(MOD(AC10,Input!$G$34)=0,($D$24*(1+$B$2)^AC10),0) -> 760049.1698
A25: =Input!C35 -> Pump | C25: =IF(Input!$E$8="","",Input!$E$8) -> KES | D25: =Input!E35 -> 200000 | E25: =IF(MOD(E10,Input!$G$35)=0,($D$25*(1+$B$2)^E10),0) -> 0 | F25: =IF(MOD(F10,Input!$G$35)=0,($D$25*(1+$B$2)^F10),0) -> 0 | G25: =IF(MOD(G10,Input!$G$35)=0,($D$25*(1+$B$2)^G10),0) -> 0 | H25: =IF(MOD(H10,Input!$G$35)=0,($D$25*(1+$B$2)^H10),0) -> 0 | I25: =IF(MOD(I10,Input!$G$35)=0,($D$25*(1+$B$2)^I10),0) -> 0 | J25: =IF(MOD(J10,Input!$G$35)=0,($D$25*(1+$B$2)^J10),0) -> 0 | K25: =IF(MOD(K10,Input!$G$35)=0,($D$25*(1+$B$2)^K10),0) -> 428503.1979 | L25: =IF(MOD(L10,Input!$G$35)=0,($D$25*(1+$B$2)^L10),0) -> 0 | M25: =IF(MOD(M10,Input!$G$35)=0,($D$25*(1+$B$2)^M10),0) -> 0 | N25: =IF(MOD(N10,Input!$G$35)=0,($D$25*(1+$B$2)^N10),0) -> 0 | O25: =IF(MOD(O10,Input!$G$35)=0,($D$25*(1+$B$2)^O10),0) -> 0 | P25: =IF(MOD(P10,Input!$G$35)=0,($D$25*(1+$B$2)^P10),0) -> 0 | Q25: =IF(MOD(Q10,Input!$G$35)=0,($D$25*(1+$B$2)^Q10),0) -> 0 | R25: =IF(MOD(R10,Input!$G$35)=0,($D$25*(1+$B$2)^R10),0) -> 918074.9529 | S25: =IF(MOD(S10,Input!$G$35)=0,($D$25*(1+$B$2)^S10),0) -> 0 | T25: =IF(MOD(T10,Input!$G$35)=0,($D$25*(1+$B$2)^T10),0) -> 0 | U25: =IF(MOD(U10,Input!$G$35)=0,($D$25*(1+$B$2)^U10),0) -> 0 | V25: =IF(MOD(V10,Input!$G$35)=0,($D$25*(1+$B$2)^V10),0) -> 0 | W25: =IF(MOD(W10,Input!$G$35)=0,($D$25*(1+$B$2)^W10),0) -> 0 | X25: =IF(MOD(X10,Input!$G$35)=0,($D$25*(1+$B$2)^X10),0) -> 0 | Y25: =IF(MOD(Y10,Input!$G$35)=0,($D$25*(1+$B$2)^Y10),0) -> 1966990.266 | Z25: =IF(MOD(Z10,Input!$G$35)=0,($D$25*(1+$B$2)^Z10),0) -> 0 | AA25: =IF(MOD(AA10,Input!$G$35)=0,($D$25*(1+$B$2)^AA10),0) -> 0 | AB25: =IF(MOD(AB10,Input!$G$35)=0,($D$25*(1+$B$2)^AB10),0) -> 0 | AC25: =IF(MOD(AC10,Input!$G$35)=0,($D$25*(1+$B$2)^AC10),0) -> 0
A26: Wires / tubes | C26: =IF(Input!$E$8="","",Input!$E$8) -> KES | D26: =Input!E36 -> 50000 | E26: =IF(MOD(E10,Input!$G$36)=0,($D$26*(1+$B$2)^E10),0) -> 0 | F26: =IF(MOD(F10,Input!$G$36)=0,($D$26*(1+$B$2)^F10),0) -> 0 | G26: =IF(MOD(G10,Input!$G$36)=0,($D$26*(1+$B$2)^G10),0) -> 0 | H26: =IF(MOD(H10,Input!$G$36)=0,($D$26*(1+$B$2)^H10),0) -> 0 | I26: =IF(MOD(I10,Input!$G$36)=0,($D$26*(1+$B$2)^I10),0) -> 86167.66833 | J26: =IF(MOD(J10,Input!$G$36)=0,($D$26*(1+$B$2)^J10),0) -> 0 | K26: =IF(MOD(K10,Input!$G$36)=0,($D$26*(1+$B$2)^K10),0) -> 0 | L26: =IF(MOD(L10,Input!$G$36)=0,($D$26*(1+$B$2)^L10),0) -> 0 | M26: =IF(MOD(M10,Input!$G$36)=0,($D$26*(1+$B$2)^M10),0) -> 0 | N26: =IF(MOD(N10,Input!$G$36)=0,($D$26*(1+$B$2)^N10),0) -> 148497.3413 | O26: =IF(MOD(O10,Input!$G$36)=0,($D$26*(1+$B$2)^O10),0) -> 0 | P26: =IF(MOD(P10,Input!$G$36)=0,($D$26*(1+$B$2)^P10),0) -> 0 | Q26: =IF(MOD(Q10,Input!$G$36)=0,($D$26*(1+$B$2)^Q10),0) -> 0 | R26: =IF(MOD(R10,Input!$G$36)=0,($D$26*(1+$B$2)^R10),0) -> 0 | S26: =IF(MOD(S10,Input!$G$36)=0,($D$26*(1+$B$2)^S10),0) -> 255913.3931 | T26: =IF(MOD(T10,Input!$G$36)=0,($D$26*(1+$B$2)^T10),0) -> 0 | U26: =IF(MOD(U10,Input!$G$36)=0,($D$26*(1+$B$2)^U10),0) -> 0 | V26: =IF(MOD(V10,Input!$G$36)=0,($D$26*(1+$B$2)^V10),0) -> 0 | W26: =IF(MOD(W10,Input!$G$36)=0,($D$26*(1+$B$2)^W10),0) -> 0 | X26: =IF(MOD(X10,Input!$G$36)=0,($D$26*(1+$B$2)^X10),0) -> 441029.2076 | Y26: =IF(MOD(Y10,Input!$G$36)=0,($D$26*(1+$B$2)^Y10),0) -> 0 | Z26: =IF(MOD(Z10,Input!$G$36)=0,($D$26*(1+$B$2)^Z10),0) -> 0 | AA26: =IF(MOD(AA10,Input!$G$36)=0,($D$26*(1+$B$2)^AA10),0) -> 0 | AB26: =IF(MOD(AB10,Input!$G$36)=0,($D$26*(1+$B$2)^AB10),0) -> 0 | AC26: =IF(MOD(AC10,Input!$G$36)=0,($D$26*(1+$B$2)^AC10),0) -> 760049.1698
A27: Water storage | C27: =IF(Input!$E$8="","",Input!$E$8) -> KES | D27: =Input!E37 -> 55000 | E27: =IF(MOD(E10,Input!$G$37)=0,($D$27*(1+$B$2)^E10),0) -> 0 | F27: =IF(MOD(F10,Input!$G$37)=0,($D$27*(1+$B$2)^F10),0) -> 0 | G27: =IF(MOD(G10,Input!$G$37)=0,($D$27*(1+$B$2)^G10),0) -> 0 | H27: =IF(MOD(H10,Input!$G$37)=0,($D$27*(1+$B$2)^H10),0) -> 0 | I27: =IF(MOD(I10,Input!$G$37)=0,($D$27*(1+$B$2)^I10),0) -> 0 | J27: =IF(MOD(J10,Input!$G$37)=0,($D$27*(1+$B$2)^J10),0) -> 0 | K27: =IF(MOD(K10,Input!$G$37)=0,($D$27*(1+$B$2)^K10),0) -> 0 | L27: =IF(MOD(L10,Input!$G$37)=0,($D$27*(1+$B$2)^L10),0) -> 0 | M27: =IF(MOD(M10,Input!$G$37)=0,($D$27*(1+$B$2)^M10),0) -> 0 | N27: =IF(MOD(N10,Input!$G$37)=0,($D$27*(1+$B$2)^N10),0) -> 0 | O27: =IF(MOD(O10,Input!$G$37)=0,($D$27*(1+$B$2)^O10),0) -> 0 | P27: =IF(MOD(P10,Input!$G$37)=0,($D$27*(1+$B$2)^P10),0) -> 0 | Q27: =IF(MOD(Q10,Input!$G$37)=0,($D$27*(1+$B$2)^Q10),0) -> 0 | R27: =IF(MOD(R10,Input!$G$37)=0,($D$27*(1+$B$2)^R10),0) -> 0 | S27: =IF(MOD(S10,Input!$G$37)=0,($D$27*(1+$B$2)^S10),0) -> 0 | T27: =IF(MOD(T10,Input!$G$37)=0,($D$27*(1+$B$2)^T10),0) -> 0 | U27: =IF(MOD(U10,Input!$G$37)=0,($D$27*(1+$B$2)^U10),0) -> 0 | V27: =IF(MOD(V10,Input!$G$37)=0,($D$27*(1+$B$2)^V10),0) -> 0 | W27: =IF(MOD(W10,Input!$G$37)=0,($D$27*(1+$B$2)^W10),0) -> 0 | X27: =IF(MOD(X10,Input!$G$37)=0,($D$27*(1+$B$2)^X10),0) -> 485132.1284 | Y27: =IF(MOD(Y10,Input!$G$37)=0,($D$27*(1+$B$2)^Y10),0) -> 0 | Z27: =IF(MOD(Z10,Input!$G$37)=0,($D$27*(1+$B$2)^Z10),0) -> 0 | AA27: =IF(MOD(AA10,Input!$G$37)=0,($D$27*(1+$B$2)^AA10),0) -> 0 | AB27: =IF(MOD(AB10,Input!$G$37)=0,($D$27*(1+$B$2)^AB10),0) -> 0 | AC27: =IF(MOD(AC10,Input!$G$37)=0,($D$27*(1+$B$2)^AC10),0) -> 0
A28: Irrigation system | C28: =IF(Input!$E$8="","",Input!$E$8) -> KES | D28: =Input!E38 -> 80000 | E28: =IF(MOD(E10,Input!$G$38)=0,($D$28*(1+$B$2)^E10),0) -> 0 | F28: =IF(MOD(F10,Input!$G$38)=0,($D$28*(1+$B$2)^F10),0) -> 0 | G28: =IF(MOD(G10,Input!$G$38)=0,($D$28*(1+$B$2)^G10),0) -> 0 | H28: =IF(MOD(H10,Input!$G$38)=0,($D$28*(1+$B$2)^H10),0) -> 0 | I28: =IF(MOD(I10,Input!$G$38)=0,($D$28*(1+$B$2)^I10),0) -> 137868.2693 | J28: =IF(MOD(J10,Input!$G$38)=0,($D$28*(1+$B$2)^J10),0) -> 0 | K28: =IF(MOD(K10,Input!$G$38)=0,($D$28*(1+$B$2)^K10),0) -> 0 | L28: =IF(MOD(L10,Input!$G$38)=0,($D$28*(1+$B$2)^L10),0) -> 0 | M28: =IF(MOD(M10,Input!$G$38)=0,($D$28*(1+$B$2)^M10),0) -> 0 | N28: =IF(MOD(N10,Input!$G$38)=0,($D$28*(1+$B$2)^N10),0) -> 237595.7461 | O28: =IF(MOD(O10,Input!$G$38)=0,($D$28*(1+$B$2)^O10),0) -> 0 | P28: =IF(MOD(P10,Input!$G$38)=0,($D$28*(1+$B$2)^P10),0) -> 0 | Q28: =IF(MOD(Q10,Input!$G$38)=0,($D$28*(1+$B$2)^Q10),0) -> 0 | R28: =IF(MOD(R10,Input!$G$38)=0,($D$28*(1+$B$2)^R10),0) -> 0 | S28: =IF(MOD(S10,Input!$G$38)=0,($D$28*(1+$B$2)^S10),0) -> 409461.429 | T28: =IF(MOD(T10,Input!$G$38)=0,($D$28*(1+$B$2)^T10),0) -> 0 | U28: =IF(MOD(U10,Input!$G$38)=0,($D$28*(1+$B$2)^U10),0) -> 0 | V28: =IF(MOD(V10,Input!$G$38)=0,($D$28*(1+$B$2)^V10),0) -> 0 | W28: =IF(MOD(W10,Input!$G$38)=0,($D$28*(1+$B$2)^W10),0) -> 0 | X28: =IF(MOD(X10,Input!$G$38)=0,($D$28*(1+$B$2)^X10),0) -> 705646.7322 | Y28: =IF(MOD(Y10,Input!$G$38)=0,($D$28*(1+$B$2)^Y10),0) -> 0 | Z28: =IF(MOD(Z10,Input!$G$38)=0,($D$28*(1+$B$2)^Z10),0) -> 0 | AA28: =IF(MOD(AA10,Input!$G$38)=0,($D$28*(1+$B$2)^AA10),0) -> 0 | AB28: =IF(MOD(AB10,Input!$G$38)=0,($D$28*(1+$B$2)^AB10),0) -> 0 | AC28: =IF(MOD(AC10,Input!$G$38)=0,($D$28*(1+$B$2)^AC10),0) -> 1216078.672
A29: Drilling | C29: =IF(Input!$E$8="","",Input!$E$8) -> KES | D29: =Input!E39 -> 0
A30: Installation | C30: =IF(Input!$E$8="","",Input!$E$8) -> KES | D30: =Input!E40 -> 25000
A31: Other Costs | C31: =IF(Input!$E$8="","",Input!$E$8) -> KES | D31: =Input!E41 -> 0
A32: Loan Repayment | C32: =IF(Input!$E$8="","",Input!$E$8) -> KES | D32: 0 | E32: =IF(E10<='Loan Repayment Solar'!Loan_Years,'Loan Repayment Solar'!Scheduled_Monthly_Payment,0) -> 0 | F32: =IF(F10<='Loan Repayment Solar'!Loan_Years,'Loan Repayment Solar'!Scheduled_Monthly_Payment,0) -> 0 | G32: =IF(G10<='Loan Repayment Solar'!Loan_Years,'Loan Repayment Solar'!Scheduled_Monthly_Payment,0) -> 0 | H32: =IF(H10<='Loan Repayment Solar'!Loan_Years,'Loan Repayment Solar'!Scheduled_Monthly_Payment,0) -> 0 | I32: =IF(I10<='Loan Repayment Solar'!Loan_Years,'Loan Repayment Solar'!Scheduled_Monthly_Payment,0) -> 0 | J32: =IF(J10<='Loan Repayment Solar'!Loan_Years,'Loan Repayment Solar'!Scheduled_Monthly_Payment,0) -> 0 | K32: =IF(K10<='Loan Repayment Solar'!Loan_Years,'Loan Repayment Solar'!Scheduled_Monthly_Payment,0) -> 0 | L32: =IF(L10<='Loan Repayment Solar'!Loan_Years,'Loan Repayment Solar'!Scheduled_Monthly_Payment,0) -> 0 | M32: =IF(M10<='Loan Repayment Solar'!Loan_Years,'Loan Repayment Solar'!Scheduled_Monthly_Payment,0) -> 0 | N32: =IF(N10<='Loan Repayment Solar'!Loan_Years,'Loan Repayment Solar'!Scheduled_Monthly_Payment,0) -> 0 | O32: =IF(O10<='Loan Repayment Solar'!Loan_Years,'Loan Repayment Solar'!Scheduled_Monthly_Payment,0) -> 0 | P32: =IF(P10<='Loan Repayment Solar'!Loan_Years,'Loan Repayment Solar'!Scheduled_Monthly_Payment,0) -> 0 | Q32: =IF(Q10<='Loan Repayment Solar'!Loan_Years,'Loan Repayment Solar'!Scheduled_Monthly_Payment,0) -> 0 | R32: =IF(R10<='Loan Repayment Solar'!Loan_Years,'Loan Repayment Solar'!Scheduled_Monthly_Payment,0) -> 0 | S32: =IF(S10<='Loan Repayment Solar'!Loan_Years,'Loan Repayment Solar'!Scheduled_Monthly_Payment,0) -> 0 | T32: =IF(T10<='Loan Repayment Solar'!Loan_Years,'Loan Repayment Solar'!Scheduled_Monthly_Payment,0) -> 0 | U32: =IF(U10<='Loan Repayment Solar'!Loan_Years,'Loan Repayment Solar'!Scheduled_Monthly_Payment,0) -> 0 | V32: =IF(V10<='Loan Repayment Solar'!Loan_Years,'Loan Repayment Solar'!Scheduled_Monthly_Payment,0) -> 0 | W32: =IF(W10<='Loan Repayment Solar'!Loan_Years,'Loan Repayment Solar'!Scheduled_Monthly_Payment,0) -> 0 | X32: =IF(X10<='Loan Repayment Solar'!Loan_Years,'Loan Repayment Solar'!Scheduled_Monthly_Payment,0) -> 0 | Y32: =IF(Y10<='Loan Repayment Solar'!Loan_Years,'Loan Repayment Solar'!Scheduled_Monthly_Payment,0) -> 0 | Z32: =IF(Z10<='Loan Repayment Solar'!Loan_Years,'Loan Repayment Solar'!Scheduled_Monthly_Payment,0) -> 0 | AA32: =IF(AA10<='Loan Repayment Solar'!Loan_Years,'Loan Repayment Solar'!Scheduled_Monthly_Payment,0) -> 0 | AB32: =IF(AB10<='Loan Repayment Solar'!Loan_Years,'Loan Repayment Solar'!Scheduled_Monthly_Payment,0) -> 0 | AC32: =IF(AC10<='Loan Repayment Solar'!Loan_Years,'Loan Repayment Solar'!Scheduled_Monthly_Payment,0) -> 0
A33: Energy costs (fuel or electricity): | C33: =IF(Input!$E$8="","",Input!$E$8) -> KES | D33: 0 | E33: =Input!E44 -> 0 | F33: =E33*(1+(1*$B$5)) -> 0 | G33: =F33*(1+(1*$B$5)) -> 0 | H33: 0 | I33: 0 | J33: 0 | K33: 0 | L33: 0 | M33: 0 | N33: 0 | O33: 0 | P33: 0 | Q33: 0 | R33: 0 | S33: 0 | T33: 0 | U33: 0 | V33: 0 | W33: 0 | X33: 0 | Y33: 0 | Z33: 0 | AA33: 0 | AB33: 0 | AC33: 0
A34: Operating Costs: | C34: =IF(Input!$E$8="","",Input!$E$8) -> KES | D34: 0 | E34: =SUM(Input!E45:E46) -> 6000 | F34: =E34*(1+(1*$B$2)) -> 6690 | G34: 7459.35 | H34: 8317.17525 | I34: 9273.650404 | J34: 10340.1202 | K34: 11529.23402 | L34: 12855.09594 | M34: 14333.43197 | N34: 15981.77664 | O34: 17819.68096 | P34: 19868.94427 | Q34: 22153.87286 | R34: 24701.56824 | S34: 27542.24859 | T34: 30709.60717 | U34: 34241.212 | V34: 38178.95138 | W34: 42569.53079 | X34: 47465.02683 | Y34: 52923.50491 | Z34: 59009.70798 | AA34: 65795.8244 | AB34: 73362.3442 | AC34: 81799.01379
A37: Gross Expenses System per year: | C37: =IF(Input!$E$8="","",Input!$E$8) -> KES | D37: =SUM(D23:D31) -> 860000 | E37: =E33+E34+SUMIF(E23:E32,"<1E+307") -> 6000 | F37: =F33+F34+SUMIF(F23:F32,"<1E+307") -> 6690 | G37: 7459.35 | H37: 8317.17525 | I37: 319477.2564 | J37: 10340.1202 | K37: 440032.4319 | L37: 12855.09594 | M37: 14333.43197 | N37: 550572.2054 | O37: 17819.68096 | P37: 19868.94427 | Q37: 22153.87286 | R37: 942776.5211 | S37: 948830.4638 | T37: 30709.60717 | U37: 34241.212 | V37: 38178.95138 | W37: 42569.53079 | X37: 5648535.964 | Y37: 2019913.771 | Z37: 59009.70798 | AA37: 65795.8244 | AB37: 73362.3442 | AC37: 2817976.025
A40: Cash Flow: | D40: =D13-D45 -> -860000 | E40: =E13-E45 -> -568840 | F40: =F13-F45 -> -248654 | G40: =G13-G45 -> 103450.25 | H40: 490653.0348 | I40: 606247.7343 | J40: 1074486.766 | K40: 1160891.401 | L40: 1727117.078 | M40: 2349772.497 | N40: 2499888.027 | O40: 3252824.856 | P40: 4080788.072 | Q40: 4991249.576 | R40: 5074349.968 | S40: 5253984.11 | T40: 6464585.569 | U40: 7795786.53 | V40: 9259593.968 | W40: 10869209.47 | X40: 7038077.034 | Y40: 7017307.149 | Z40: 9157355.714 | AA40: 11510523.99 | AB40: 14098022.16 | AC40: 14206992.69
D42: =IF(D40>0,"Yes","No") -> No | E42: =IF(E40>0,"Yes","No") -> No | F42: =IF(F40>0,"Yes","No") -> No | G42: Yes | H42: Yes | I42: Yes | J42: Yes | K42: Yes | L42: Yes | M42: Yes | N42: Yes | O42: Yes | P42: Yes | Q42: Yes | R42: Yes | S42: Yes | T42: Yes | U42: Yes | V42: Yes | W42: Yes | X42: Yes | Y42: Yes | Z42: Yes | AA42: Yes | AB42: Yes | AC42: Yes
A43: Payback period against investment (years) | B43: =IF(AC40<0,"no payback",COUNTIF(D40:AC40,"<0")) -> 3 | C43: years
A45: System Life Cycle Costs (25 years) | B45: =IF($A$46=TRUE,AC46,NA()) -> 15017819.49 | C45: =IF(Input!$E$8="","",Input!$E$8) -> KES | D45: =IF($A$46=TRUE,D46,NA()) -> 860000 | E45: =IF($A$46=TRUE,E46,NA()) -> 866000 | F45: =IF($A$46=TRUE,F46,NA()) -> 872690 | G45: 880149.35 | H45: 888466.5252 | I45: 1207943.782 | J45: 1218283.902 | K45: 1658316.334 | L45: 1671171.43 | M45: 1685504.862 | N45: 2236077.067 | O45: 2253896.748 | P45: 2273765.692 | Q45: 2295919.565 | R45: 3238696.086 | S45: 4187526.55 | T45: 4218236.157 | U45: 4252477.369 | V45: 4290656.321 | W45: 4333225.851 | X45: 9981761.815 | Y45: 12001675.59 | Z45: 12060685.29 | AA45: 12126481.12 | AB45: 12199843.46 | AC45: 15017819.49
A46: TRUE | D46: =D37 -> 860000 | E46: =SUM($D$37:E37) -> 866000 | F46: =SUM($D$37:F37) -> 872690 | G46: =SUM($D$37:G37) -> 880149.35 | H46: =SUM($D$37:H37) -> 888466.5252 | I46: =SUM($D$37:I37) -> 1207943.782 | J46: =SUM($D$37:J37) -> 1218283.902 | K46: =SUM($D$37:K37) -> 1658316.334 | L46: =SUM($D$37:L37) -> 1671171.43 | M46: =SUM($D$37:M37) -> 1685504.862 | N46: =SUM($D$37:N37) -> 2236077.067 | O46: =SUM($D$37:O37) -> 2253896.748 | P46: =SUM($D$37:P37) -> 2273765.692 | Q46: =SUM($D$37:Q37) -> 2295919.565 | R46: =SUM($D$37:R37) -> 3238696.086 | S46: =SUM($D$37:S37) -> 4187526.55 | T46: =SUM($D$37:T37) -> 4218236.157 | U46: =SUM($D$37:U37) -> 4252477.369 | V46: =SUM($D$37:V37) -> 4290656.321 | W46: =SUM($D$37:W37) -> 4333225.851 | X46: =SUM($D$37:X37) -> 9981761.815 | Y46: =SUM($D$37:Y37) -> 12001675.59 | Z46: =SUM($D$37:Z37) -> 12060685.29 | AA46: =SUM($D$37:AA37) -> 12126481.12 | AB46: =SUM($D$37:AB37) -> 12199843.46 | AC46: =SUM($D$37:AC37) -> 15017819.49
A47: Cost of water | C47: =IF(Input!$E$8="","",Input!$E$8&" /m3") -> KES /m3 | D47: =D37/($B$8*365) -> 90.62170706 | E47: =E37/($B$8*365) -> 0.6322444679 | F47: 0.7049525817 | G47: 0.7860221286 | H47: 0.8764146733 | I47: 33.66462133 | J47: 1.089580632 | K47: 46.36801179 | L47: 1.354593882 | M47: 1.510372178 | N47: 58.01603851 | O47: 1.877732451 | P47: 2.093671683 | Q47: 2.334443926 | R47: 99.34420665 | S47: 99.98213528 | T47: 3.235996541 | U47: 3.608136143 | V47: 4.0230718 | W47: 4.485725057 | X47: 595.2092691 | Y47: 212.8465512 | Z47: 6.21809357 | AA47: 6.93317433 | AB47: 7.730489378 | AC47: 296.9416254
A48: Average water cost over 25 years | B48: =AVERAGE(D47:AC47) -> 60.86495699 | C48: =IF(Input!$E$8="","",Input!$E$8&" /m3") -> KES /m3 | I48: =AVERAGE(D47:I47) -> 21.21432704 | N48: =AVERAGE(D47:N47) -> 21.42041448
A50: NPV | B50: =Input!E12 -> 0.16 | C50: =NPV(B50,E40:X40)+D40 -> 7780727.543
A51: IRR | C51: =IRR(D40:X40) -> 0.3819574298
A58: =Input!D58 -> Grid powered irrigation system
A61: =Input!C62 -> Inverter (if pump is DC) | C61: =IF(Input!$E$8="","",Input!$E$8) -> KES | D61: =Input!E62 -> 0 | E61: =IF(MOD(E10,Input!$G$62)=0,($D$61*(1+$B$2)^E10),0) ->  | F61: =IF(MOD(F10,Input!$G$62)=0,($D$61*(1+$B$2)^F10),0) ->  | G61: =IF(MOD(G10,Input!$G$62)=0,($D$61*(1+$B$2)^G10),0) ->  | H61: =IF(MOD(H10,Input!$G$62)=0,($D$61*(1+$B$2)^H10),0) ->  | I61: =IF(MOD(I10,Input!$G$62)=0,($D$61*(1+$B$2)^I10),0) ->  | J61: =IF(MOD(J10,Input!$G$62)=0,($D$61*(1+$B$2)^J10),0) ->  | K61: =IF(MOD(K10,Input!$G$62)=0,($D$61*(1+$B$2)^K10),0) ->  | L61: =IF(MOD(L10,Input!$G$62)=0,($D$61*(1+$B$2)^L10),0) ->  | M61: =IF(MOD(M10,Input!$G$62)=0,($D$61*(1+$B$2)^M10),0) ->  | N61: =IF(MOD(N10,Input!$G$62)=0,($D$61*(1+$B$2)^N10),0) ->  | O61: =IF(MOD(O10,Input!$G$62)=0,($D$61*(1+$B$2)^O10),0) ->  | P61: =IF(MOD(P10,Input!$G$62)=0,($D$61*(1+$B$2)^P10),0) ->  | Q61: =IF(MOD(Q10,Input!$G$62)=0,($D$61*(1+$B$2)^Q10),0) ->  | R61: =IF(MOD(R10,Input!$G$62)=0,($D$61*(1+$B$2)^R10),0) ->  | S61: =IF(MOD(S10,Input!$G$62)=0,($D$61*(1+$B$2)^S10),0) ->  | T61: =IF(MOD(T10,Input!$G$62)=0,($D$61*(1+$B$2)^T10),0) ->  | U61: =IF(MOD(U10,Input!$G$62)=0,($D$61*(1+$B$2)^U10),0) ->  | V61: =IF(MOD(V10,Input!$G$62)=0,($D$61*(1+$B$2)^V10),0) ->  | W61: =IF(MOD(W10,Input!$G$62)=0,($D$61*(1+$B$2)^W10),0) ->  | X61: =IF(MOD(X10,Input!$G$62)=0,($D$61*(1+$B$2)^X10),0) ->  | Y61: =IF(MOD(Y10,Input!$G$62)=0,($D$61*(1+$B$2)^Y10),0) ->  | Z61: =IF(MOD(Z10,Input!$G$62)=0,($D$61*(1+$B$2)^Z10),0) ->  | AA61: =IF(MOD(AA10,Input!$G$62)=0,($D$61*(1+$B$2)^AA10),0) ->  | AB61: =IF(MOD(AB10,Input!$G$62)=0,($D$61*(1+$B$2)^AB10),0) ->  | AC61: =IF(MOD(AC10,Input!$G$62)=0,($D$61*(1+$B$2)^AC10),0) -> 
A62: =Input!C63 -> Control unit | C62: =IF(Input!$E$8="","",Input!$E$8) -> KES | D62: =Input!E63 -> 0 | E62: =IF(MOD(E10,Input!$G$63)=0,($D$62*(1+$B$2)^E10),0) ->  | F62: =IF(MOD(F10,Input!$G$63)=0,($D$62*(1+$B$2)^F10),0) ->  | G62: =IF(MOD(G10,Input!$G$63)=0,($D$62*(1+$B$2)^G10),0) ->  | H62: =IF(MOD(H10,Input!$G$63)=0,($D$62*(1+$B$2)^H10),0) ->  | I62: =IF(MOD(I10,Input!$G$63)=0,($D$62*(1+$B$2)^I10),0) ->  | J62: =IF(MOD(J10,Input!$G$63)=0,($D$62*(1+$B$2)^J10),0) ->  | K62: =IF(MOD(K10,Input!$G$63)=0,($D$62*(1+$B$2)^K10),0) ->  | L62: =IF(MOD(L10,Input!$G$63)=0,($D$62*(1+$B$2)^L10),0) ->  | M62: =IF(MOD(M10,Input!$G$63)=0,($D$62*(1+$B$2)^M10),0) ->  | N62: =IF(MOD(N10,Input!$G$63)=0,($D$62*(1+$B$2)^N10),0) ->  | O62: =IF(MOD(O10,Input!$G$63)=0,($D$62*(1+$B$2)^O10),0) ->  | P62: =IF(MOD(P10,Input!$G$63)=0,($D$62*(1+$B$2)^P10),0) ->  | Q62: =IF(MOD(Q10,Input!$G$63)=0,($D$62*(1+$B$2)^Q10),0) ->  | R62: =IF(MOD(R10,Input!$G$63)=0,($D$62*(1+$B$2)^R10),0) ->  | S62: =IF(MOD(S10,Input!$G$63)=0,($D$62*(1+$B$2)^S10),0) ->  | T62: =IF(MOD(T10,Input!$G$63)=0,($D$62*(1+$B$2)^T10),0) ->  | U62: =IF(MOD(U10,Input!$G$63)=0,($D$62*(1+$B$2)^U10),0) ->  | V62: =IF(MOD(V10,Input!$G$63)=0,($D$62*(1+$B$2)^V10),0) ->  | W62: =IF(MOD(W10,Input!$G$63)=0,($D$62*(1+$B$2)^W10),0) ->  | X62: =IF(MOD(X10,Input!$G$63)=0,($D$62*(1+$B$2)^X10),0) ->  | Y62: =IF(MOD(Y10,Input!$G$63)=0,($D$62*(1+$B$2)^Y10),0) ->  | Z62: =IF(MOD(Z10,Input!$G$63)=0,($D$62*(1+$B$2)^Z10),0) ->  | AA62: =IF(MOD(AA10,Input!$G$63)=0,($D$62*(1+$B$2)^AA10),0) ->  | AB62: =IF(MOD(AB10,Input!$G$63)=0,($D$62*(1+$B$2)^AB10),0) ->  | AC62: =IF(MOD(AC10,Input!$G$63)=0,($D$62*(1+$B$2)^AC10),0) -> 
A63: =Input!C64 -> Pump | C63: =IF(Input!$E$8="","",Input!$E$8) -> KES | D63: =Input!E64 -> 150000 | E63: =IF(MOD(E10,Input!$G$64)=0,($D$63*(1+$B$2)^E10),0) -> 0 | F63: =IF(MOD(F10,Input!$G$64)=0,($D$63*(1+$B$2)^F10),0) -> 0 | G63: =IF(MOD(G10,Input!$G$64)=0,($D$63*(1+$B$2)^G10),0) -> 0 | H63: =IF(MOD(H10,Input!$G$64)=0,($D$63*(1+$B$2)^H10),0) -> 0 | I63: =IF(MOD(I10,Input!$G$64)=0,($D$63*(1+$B$2)^I10),0) -> 0 | J63: =IF(MOD(J10,Input!$G$64)=0,($D$63*(1+$B$2)^J10),0) -> 0 | K63: =IF(MOD(K10,Input!$G$64)=0,($D$63*(1+$B$2)^K10),0) -> 321377.3984 | L63: =IF(MOD(L10,Input!$G$64)=0,($D$63*(1+$B$2)^L10),0) -> 0 | M63: =IF(MOD(M10,Input!$G$64)=0,($D$63*(1+$B$2)^M10),0) -> 0 | N63: =IF(MOD(N10,Input!$G$64)=0,($D$63*(1+$B$2)^N10),0) -> 0 | O63: =IF(MOD(O10,Input!$G$64)=0,($D$63*(1+$B$2)^O10),0) -> 0 | P63: =IF(MOD(P10,Input!$G$64)=0,($D$63*(1+$B$2)^P10),0) -> 0 | Q63: =IF(MOD(Q10,Input!$G$64)=0,($D$63*(1+$B$2)^Q10),0) -> 0 | R63: =IF(MOD(R10,Input!$G$64)=0,($D$63*(1+$B$2)^R10),0) -> 688556.2147 | S63: =IF(MOD(S10,Input!$G$64)=0,($D$63*(1+$B$2)^S10),0) -> 0 | T63: =IF(MOD(T10,Input!$G$64)=0,($D$63*(1+$B$2)^T10),0) -> 0 | U63: =IF(MOD(U10,Input!$G$64)=0,($D$63*(1+$B$2)^U10),0) -> 0 | V63: =IF(MOD(V10,Input!$G$64)=0,($D$63*(1+$B$2)^V10),0) -> 0 | W63: =IF(MOD(W10,Input!$G$64)=0,($D$63*(1+$B$2)^W10),0) -> 0 | X63: =IF(MOD(X10,Input!$G$64)=0,($D$63*(1+$B$2)^X10),0) -> 0 | Y63: =IF(MOD(Y10,Input!$G$64)=0,($D$63*(1+$B$2)^Y10),0) -> 1475242.699 | Z63: =IF(MOD(Z10,Input!$G$64)=0,($D$63*(1+$B$2)^Z10),0) -> 0 | AA63: =IF(MOD(AA10,Input!$G$64)=0,($D$63*(1+$B$2)^AA10),0) -> 0 | AB63: =IF(MOD(AB10,Input!$G$64)=0,($D$63*(1+$B$2)^AB10),0) -> 0 | AC63: =IF(MOD(AC10,Input!$G$64)=0,($D$63*(1+$B$2)^AC10),0) -> 0
A64: Wires / tubes | C64: =IF(Input!$E$8="","",Input!$E$8) -> KES | D64: =Input!E65 -> 50000 | E64: =IF(MOD(E10,Input!$G$65)=0,($D$64*(1+$B$2)^E10),0) -> 0 | F64: =IF(MOD(F10,Input!$G$65)=0,($D$64*(1+$B$2)^F10),0) -> 0 | G64: =IF(MOD(G10,Input!$G$65)=0,($D$64*(1+$B$2)^G10),0) -> 0 | H64: =IF(MOD(H10,Input!$G$65)=0,($D$64*(1+$B$2)^H10),0) -> 0 | I64: =IF(MOD(I10,Input!$G$65)=0,($D$64*(1+$B$2)^I10),0) -> 86167.66833 | J64: =IF(MOD(J10,Input!$G$65)=0,($D$64*(1+$B$2)^J10),0) -> 0 | K64: =IF(MOD(K10,Input!$G$65)=0,($D$64*(1+$B$2)^K10),0) -> 0 | L64: =IF(MOD(L10,Input!$G$65)=0,($D$64*(1+$B$2)^L10),0) -> 0 | M64: =IF(MOD(M10,Input!$G$65)=0,($D$64*(1+$B$2)^M10),0) -> 0 | N64: =IF(MOD(N10,Input!$G$65)=0,($D$64*(1+$B$2)^N10),0) -> 148497.3413 | O64: =IF(MOD(O10,Input!$G$65)=0,($D$64*(1+$B$2)^O10),0) -> 0 | P64: =IF(MOD(P10,Input!$G$65)=0,($D$64*(1+$B$2)^P10),0) -> 0 | Q64: =IF(MOD(Q10,Input!$G$65)=0,($D$64*(1+$B$2)^Q10),0) -> 0 | R64: =IF(MOD(R10,Input!$G$65)=0,($D$64*(1+$B$2)^R10),0) -> 0 | S64: =IF(MOD(S10,Input!$G$65)=0,($D$64*(1+$B$2)^S10),0) -> 255913.3931 | T64: =IF(MOD(T10,Input!$G$65)=0,($D$64*(1+$B$2)^T10),0) -> 0 | U64: =IF(MOD(U10,Input!$G$65)=0,($D$64*(1+$B$2)^U10),0) -> 0 | V64: =IF(MOD(V10,Input!$G$65)=0,($D$64*(1+$B$2)^V10),0) -> 0 | W64: =IF(MOD(W10,Input!$G$65)=0,($D$64*(1+$B$2)^W10),0) -> 0 | X64: =IF(MOD(X10,Input!$G$65)=0,($D$64*(1+$B$2)^X10),0) -> 441029.2076 | Y64: =IF(MOD(Y10,Input!$G$65)=0,($D$64*(1+$B$2)^Y10),0) -> 0 | Z64: =IF(MOD(Z10,Input!$G$65)=0,($D$64*(1+$B$2)^Z10),0) -> 0 | AA64: =IF(MOD(AA10,Input!$G$65)=0,($D$64*(1+$B$2)^AA10),0) -> 0 | AB64: =IF(MOD(AB10,Input!$G$65)=0,($D$64*(1+$B$2)^AB10),0) -> 0 | AC64: =IF(MOD(AC10,Input!$G$65)=0,($D$64*(1+$B$2)^AC10),0) -> 760049.1698
A65: =Input!C66 -> Water storage | C65: =IF(Input!$E$8="","",Input!$E$8) -> KES | D65: =Input!E66 -> 55000 | E65: =IF(MOD(E10,Input!$G$66)=0,($D$65*(1+$B$2)^E10),0) -> 0 | F65: =IF(MOD(F10,Input!$G$66)=0,($D$65*(1+$B$2)^F10),0) -> 0 | G65: =IF(MOD(G10,Input!$G$66)=0,($D$65*(1+$B$2)^G10),0) -> 0 | H65: =IF(MOD(H10,Input!$G$66)=0,($D$65*(1+$B$2)^H10),0) -> 0 | I65: =IF(MOD(I10,Input!$G$66)=0,($D$65*(1+$B$2)^I10),0) -> 0 | J65: =IF(MOD(J10,Input!$G$66)=0,($D$65*(1+$B$2)^J10),0) -> 0 | K65: =IF(MOD(K10,Input!$G$66)=0,($D$65*(1+$B$2)^K10),0) -> 0 | L65: =IF(MOD(L10,Input!$G$66)=0,($D$65*(1+$B$2)^L10),0) -> 0 | M65: =IF(MOD(M10,Input!$G$66)=0,($D$65*(1+$B$2)^M10),0) -> 0 | N65: =IF(MOD(N10,Input!$G$66)=0,($D$65*(1+$B$2)^N10),0) -> 0 | O65: =IF(MOD(O10,Input!$G$66)=0,($D$65*(1+$B$2)^O10),0) -> 0 | P65: =IF(MOD(P10,Input!$G$66)=0,($D$65*(1+$B$2)^P10),0) -> 0 | Q65: =IF(MOD(Q10,Input!$G$66)=0,($D$65*(1+$B$2)^Q10),0) -> 0 | R65: =IF(MOD(R10,Input!$G$66)=0,($D$65*(1+$B$2)^R10),0) -> 0 | S65: =IF(MOD(S10,Input!$G$66)=0,($D$65*(1+$B$2)^S10),0) -> 0 | T65: =IF(MOD(T10,Input!$G$66)=0,($D$65*(1+$B$2)^T10),0) -> 0 | U65: =IF(MOD(U10,Input!$G$66)=0,($D$65*(1+$B$2)^U10),0) -> 0 | V65: =IF(MOD(V10,Input!$G$66)=0,($D$65*(1+$B$2)^V10),0) -> 0 | W65: =IF(MOD(W10,Input!$G$66)=0,($D$65*(1+$B$2)^W10),0) -> 0 | X65: =IF(MOD(X10,Input!$G$66)=0,($D$65*(1+$B$2)^X10),0) -> 485132.1284 | Y65: =IF(MOD(Y10,Input!$G$66)=0,($D$65*(1+$B$2)^Y10),0) -> 0 | Z65: =IF(MOD(Z10,Input!$G$66)=0,($D$65*(1+$B$2)^Z10),0) -> 0 | AA65: =IF(MOD(AA10,Input!$G$66)=0,($D$65*(1+$B$2)^AA10),0) -> 0 | AB65: =IF(MOD(AB10,Input!$G$66)=0,($D$65*(1+$B$2)^AB10),0) -> 0 | AC65: =IF(MOD(AC10,Input!$G$66)=0,($D$65*(1+$B$2)^AC10),0) -> 0
A66: Irrigation system | C66: =IF(Input!$E$8="","",Input!$E$8) -> KES | D66: =Input!E67 -> 80000 | E66: =IF(MOD(E10,Input!$G$67)=0,($D$66*(1+$B$2)^E10),0) -> 0 | F66: =IF(MOD(F10,Input!$G$67)=0,($D$66*(1+$B$2)^F10),0) -> 0 | G66: =IF(MOD(G10,Input!$G$67)=0,($D$66*(1+$B$2)^G10),0) -> 0 | H66: =IF(MOD(H10,Input!$G$67)=0,($D$66*(1+$B$2)^H10),0) -> 0 | I66: =IF(MOD(I10,Input!$G$67)=0,($D$66*(1+$B$2)^I10),0) -> 137868.2693 | J66: =IF(MOD(J10,Input!$G$67)=0,($D$66*(1+$B$2)^J10),0) -> 0 | K66: =IF(MOD(K10,Input!$G$67)=0,($D$66*(1+$B$2)^K10),0) -> 0 | L66: =IF(MOD(L10,Input!$G$67)=0,($D$66*(1+$B$2)^L10),0) -> 0 | M66: =IF(MOD(M10,Input!$G$67)=0,($D$66*(1+$B$2)^M10),0) -> 0 | N66: =IF(MOD(N10,Input!$G$67)=0,($D$66*(1+$B$2)^N10),0) -> 237595.7461 | O66: =IF(MOD(O10,Input!$G$67)=0,($D$66*(1+$B$2)^O10),0) -> 0 | P66: =IF(MOD(P10,Input!$G$67)=0,($D$66*(1+$B$2)^P10),0) -> 0 | Q66: =IF(MOD(Q10,Input!$G$67)=0,($D$66*(1+$B$2)^Q10),0) -> 0 | R66: =IF(MOD(R10,Input!$G$67)=0,($D$66*(1+$B$2)^R10),0) -> 0 | S66: =IF(MOD(S10,Input!$G$67)=0,($D$66*(1+$B$2)^S10),0) -> 409461.429 | T66: =IF(MOD(T10,Input!$G$67)=0,($D$66*(1+$B$2)^T10),0) -> 0 | U66: =IF(MOD(U10,Input!$G$67)=0,($D$66*(1+$B$2)^U10),0) -> 0 | V66: =IF(MOD(V10,Input!$G$67)=0,($D$66*(1+$B$2)^V10),0) -> 0 | W66: =IF(MOD(W10,Input!$G$67)=0,($D$66*(1+$B$2)^W10),0) -> 0 | X66: =IF(MOD(X10,Input!$G$67)=0,($D$66*(1+$B$2)^X10),0) -> 705646.7322 | Y66: =IF(MOD(Y10,Input!$G$67)=0,($D$66*(1+$B$2)^Y10),0) -> 0 | Z66: =IF(MOD(Z10,Input!$G$67)=0,($D$66*(1+$B$2)^Z10),0) -> 0 | AA66: =IF(MOD(AA10,Input!$G$67)=0,($D$66*(1+$B$2)^AA10),0) -> 0 | AB66: =IF(MOD(AB10,Input!$G$67)=0,($D$66*(1+$B$2)^AB10),0) -> 0 | AC66: =IF(MOD(AC10,Input!$G$67)=0,($D$66*(1+$B$2)^AC10),0) -> 1216078.672
A67: Drilling | C67: =IF(Input!$E$8="","",Input!$E$8) -> KES | D67: =Input!E68 -> 0
A68: Installation | C68: =IF(Input!$E$8="","",Input!$E$8) -> KES | D68: =Input!E69 -> 15000
A69: Other Costs | C69: =IF(Input!$E$8="","",Input!$E$8) -> KES | D69: =Input!E70 -> 0
A70: Loan Repayment | C70: =IF(Input!$E$8="","",Input!$E$8) -> KES | D70: 0 | E70: =IF(E10<='Loan Repayment Grid'!Loan_Years,'Loan Repayment Grid'!Scheduled_Monthly_Payment,0) -> 0 | F70: =IF(F10<='Loan Repayment Grid'!Loan_Years,'Loan Repayment Grid'!Scheduled_Monthly_Payment,0) -> 0 | G70: =IF(G10<='Loan Repayment Grid'!Loan_Years,'Loan Repayment Grid'!Scheduled_Monthly_Payment,0) -> 0 | H70: =IF(H10<='Loan Repayment Grid'!Loan_Years,'Loan Repayment Grid'!Scheduled_Monthly_Payment,0) -> 0 | I70: =IF(I10<='Loan Repayment Grid'!Loan_Years,'Loan Repayment Grid'!Scheduled_Monthly_Payment,0) -> 0 | J70: =IF(J10<='Loan Repayment Grid'!Loan_Years,'Loan Repayment Grid'!Scheduled_Monthly_Payment,0) -> 0 | K70: =IF(K10<='Loan Repayment Grid'!Loan_Years,'Loan Repayment Grid'!Scheduled_Monthly_Payment,0) -> 0 | L70: =IF(L10<='Loan Repayment Grid'!Loan_Years,'Loan Repayment Grid'!Scheduled_Monthly_Payment,0) -> 0 | M70: =IF(M10<='Loan Repayment Grid'!Loan_Years,'Loan Repayment Grid'!Scheduled_Monthly_Payment,0) -> 0 | N70: =IF(N10<='Loan Repayment Grid'!Loan_Years,'Loan Repayment Grid'!Scheduled_Monthly_Payment,0) -> 0 | O70: =IF(O10<='Loan Repayment Grid'!Loan_Years,'Loan Repayment Grid'!Scheduled_Monthly_Payment,0) -> 0 | P70: =IF(P10<='Loan Repayment Grid'!Loan_Years,'Loan Repayment Grid'!Scheduled_Monthly_Payment,0) -> 0 | Q70: =IF(Q10<='Loan Repayment Grid'!Loan_Years,'Loan Repayment Grid'!Scheduled_Monthly_Payment,0) -> 0 | R70: =IF(R10<='Loan Repayment Grid'!Loan_Years,'Loan Repayment Grid'!Scheduled_Monthly_Payment,0) -> 0 | S70: =IF(S10<='Loan Repayment Grid'!Loan_Years,'Loan Repayment Grid'!Scheduled_Monthly_Payment,0) -> 0 | T70: =IF(T10<='Loan Repayment Grid'!Loan_Years,'Loan Repayment Grid'!Scheduled_Monthly_Payment,0) -> 0 | U70: =IF(U10<='Loan Repayment Grid'!Loan_Years,'Loan Repayment Grid'!Scheduled_Monthly_Payment,0) -> 0 | V70: =IF(V10<='Loan Repayment Grid'!Loan_Years,'Loan Repayment Grid'!Scheduled_Monthly_Payment,0) -> 0 | W70: =IF(W10<='Loan Repayment Grid'!Loan_Years,'Loan Repayment Grid'!Scheduled_Monthly_Payment,0) -> 0 | X70: =IF(X10<='Loan Repayment Grid'!Loan_Years,'Loan Repayment Grid'!Scheduled_Monthly_Payment,0) -> 0 | Y70: =IF(Y10<='Loan Repayment Grid'!Loan_Years,'Loan Repayment Grid'!Scheduled_Monthly_Payment,0) -> 0 | Z70: =IF(Z10<='Loan Repayment Grid'!Loan_Years,'Loan Repayment Grid'!Scheduled_Monthly_Payment,0) -> 0 | AA70: =IF(AA10<='Loan Repayment Grid'!Loan_Years,'Loan Repayment Grid'!Scheduled_Monthly_Payment,0) -> 0 | AB70: =IF(AB10<='Loan Repayment Grid'!Loan_Years,'Loan Repayment Grid'!Scheduled_Monthly_Payment,0) -> 0 | AC70: =IF(AC10<='Loan Repayment Grid'!Loan_Years,'Loan Repayment Grid'!Scheduled_Monthly_Payment,0) -> 0
A71: Electricity costs: | C71: =IF(Input!$E$8="","",Input!$E$8) -> KES | D71: 0 | E71: =Input!E75 -> 13474.5 | F71: =E71*(1+(1*$B$6)) -> 14552.46 | G71: =F71*(1+(1*$B$6)) -> 15716.6568 | H71: =G71*(1+(1*$B$6)) -> 16973.98934 | I71: 18331.90849 | J71: 19798.46117 | K71: 21382.33806 | L71: 23092.92511 | M71: 24940.35912 | N71: 26935.58785 | O71: 29090.43488 | P71: 31417.66967 | Q71: 33931.08324 | R71: 36645.5699 | S71: 39577.21549 | T71: 42743.39273 | U71: 46162.86415 | V71: 49855.89328 | W71: 53844.36474 | X71: 58151.91392 | Y71: 62804.06703 | Z71: 67828.3924 | AA71: 73254.66379 | AB71: 79115.03689 | AC71: 85444.23984
A72: Operating Costs: | C72: =IF(Input!$E$8="","",Input!$E$8) -> KES | D72: 0 | E72: =SUM(Input!E76:E77) -> 5000 | F72: =E72*(1+(1*$B$2)) -> 5575 | G72: 6216.125 | H72: 6930.979375 | I72: 7728.042003 | J72: 8616.766833 | K72: 9607.695019 | L72: 10712.57995 | M72: 11944.52664 | N72: 13318.1472 | O72: 14849.73413 | P72: 16557.45356 | Q72: 18461.56072 | R72: 20584.6402 | S72: 22951.87382 | T72: 25591.33931 | U72: 28534.34333 | V72: 31815.79282 | W72: 35474.60899 | X72: 39554.18902 | Y72: 44102.92076 | Z72: 49174.75665 | AA72: 54829.85366 | AB72: 61135.28683 | AC72: 68165.84482
A75: Gross Expenses System per year: | C75: =IF(Input!$E$8="","",Input!$E$8) -> KES | D75: =SUM(D61:D69) -> 350000 | E75: =E71+E72+SUMIF(E61:E70,"<1E+307") -> 18474.5 | F75: =F71+F72+SUMIF(F61:F70,"<1E+307") -> 20127.46 | G75: 21932.7818 | H75: 23904.96872 | I75: 250095.8882 | J75: 28415.228 | K75: 352367.4315 | L75: 33805.50506 | M75: 36884.88576 | N75: 426346.8225 | O75: 43940.16901 | P75: 47975.12322 | Q75: 52392.64396 | R75: 745786.4248 | S75: 727903.9114 | T75: 68334.73204 | U75: 74697.20748 | V75: 81671.6861 | W75: 89318.97373 | X75: 1729514.171 | Y75: 1582149.687 | Z75: 117003.149 | AA75: 128084.5175 | AB75: 140250.3237 | AC75: 2129737.926
A78: Cash Flow: | C78: =IF(Input!$E$8="","",Input!$E$8) -> KES | D78: =D13-D83 -> -350000 | E78: =E13-E83 -> -71314.5 | F78: 235434.04 | G78: 573064.8582 | H78: 944679.8495 | I78: 1129655.917 | J78: 1579819.841 | K78: 1753889.476 | L78: 2299164.745 | M78: 2899268.71 | N78: 3173609.623 | O78: 3900425.963 | P78: 4700283.001 | Q78: 5580505.733 | R78: 5860596.222 | S78: 6261156.916 | T78: 7434133.25 | U78: 8724878.216 | V78: 10145192.92 | W78: 11708058.97 | X78: 11795948.34 | Y78: 12212942.53 | Z78: 14294997.66 | AA78: 16585877.24 | AB78: 19106487.43 | AC78: 19903696.06
D80: =IF(D78>0,"Yes","No") -> No | E80: =IF(E78>0,"Yes","No") -> No | F80: Yes | G80: Yes | H80: Yes | I80: Yes | J80: Yes | K80: Yes | L80: Yes | M80: Yes | N80: Yes | O80: Yes | P80: Yes | Q80: Yes | R80: Yes | S80: Yes | T80: Yes | U80: Yes | V80: Yes | W80: Yes | X80: Yes | Y80: Yes | Z80: Yes | AA80: Yes | AB80: Yes | AC80: Yes
A81: Payback period against investment (years) | B81: =IF(AC78<0,"no payback",COUNTIF(D78:AC78,"<0")) -> 2 | C81: years
A83: System Life Cycle Costs | B83: =IF($A$84=TRUE,AC84,NA()) -> 9321116.118 | C83: =IF(Input!$E$8="","",Input!$E$8) -> KES | D83: =IF($A$84=TRUE,D84,NA()) -> 350000 | E83: 368474.5 | F83: 388601.96 | G83: 410534.7418 | H83: 434439.7105 | I83: 684535.5987 | J83: 712950.8267 | K83: 1065318.258 | L83: 1099123.763 | M83: 1136008.649 | N83: 1562355.471 | O83: 1606295.64 | P83: 1654270.764 | Q83: 1706663.408 | R83: 2452449.832 | S83: 3180353.744 | T83: 3248688.476 | U83: 3323385.683 | V83: 3405057.369 | W83: 3494376.343 | X83: 5223890.514 | Y83: 6806040.202 | Z83: 6923043.351 | AA83: 7051127.868 | AB83: 7191378.192 | AC83: 9321116.118
A84: TRUE | D84: =D75 -> 350000 | E84: =SUM($D$75:E75) -> 368474.5 | F84: =SUM($D$75:F75) -> 388601.96 | G84: =SUM($D$75:G75) -> 410534.7418 | H84: =SUM($D$75:H75) -> 434439.7105 | I84: =SUM($D$75:I75) -> 684535.5987 | J84: =SUM($D$75:J75) -> 712950.8267 | K84: =SUM($D$75:K75) -> 1065318.258 | L84: =SUM($D$75:L75) -> 1099123.763 | M84: =SUM($D$75:M75) -> 1136008.649 | N84: =SUM($D$75:N75) -> 1562355.471 | O84: =SUM($D$75:O75) -> 1606295.64 | P84: =SUM($D$75:P75) -> 1654270.764 | Q84: =SUM($D$75:Q75) -> 1706663.408 | R84: =SUM($D$75:R75) -> 2452449.832 | S84: =SUM($D$75:S75) -> 3180353.744 | T84: =SUM($D$75:T75) -> 3248688.476 | U84: =SUM($D$75:U75) -> 3323385.683 | V84: =SUM($D$75:V75) -> 3405057.369 | W84: =SUM($D$75:W75) -> 3494376.343 | X84: =SUM($D$75:X75) -> 5223890.514 | Y84: =SUM($D$75:Y75) -> 6806040.202 | Z84: =SUM($D$75:Z75) -> 6923043.351 | AA84: =SUM($D$75:AA75) -> 7051127.868 | AB84: =SUM($D$75:AB75) -> 7191378.192 | AC84: =SUM($D$75:AC75) -> 9321116.118
A85: Cost of water | C85: =IF(Input!$E$8="","",Input!$E$8&" /m3") -> KES /m3 | D85: =D75/($B$8*365) -> 36.88092729 | E85: =E75/($B$8*365) -> 1.946733404 | F85: 2.12091254 | G85: 2.31114666 | H85: 2.518964038 | I85: 26.35362362 | J85: 2.994228451 | K85: 37.1303932 | L85: 3.562223926 | M85: 3.886710828 | N85: 44.92590332 | O85: 4.630154795 | P85: 5.055334376 | Q85: 5.52082655 | R85: 78.58655688 | S85: 76.70220352 | T85: 7.200709383 | U85: 7.871149366 | V85: 8.606078619 | W85: 9.411904503 | X85: 182.2459611 | Y85: 166.7175645 | Z85: 12.32909895 | AA85: 13.49678793 | AB85: 14.77874855 | AC85: 224.4191703
A86: Average water cost over 25 years | B86: =AVERAGE(D85:AC85) -> 37.77707756 | C86: =IF(Input!$E$8="","",Input!$E$8&" /m3") -> KES /m3 | I86: =AVERAGE(D85:I85) -> 12.02205126 | N86: =AVERAGE(D85:N85) -> 14.9665243
A88: NPV | B88: =Input!E12 -> 0.16 | C88: =NPV(B88,E78:X78)+D78 -> 11813209.77
A89: IRR | C89: =IRR(D78:X78) -> 0.8641154094
N96: PV | P96: Diesel
L97: Anuties of Investment | N97: =C50 -> 7780727.543 | P97: =C88 -> 11813209.77
L99: Year | N99: Annuity | O99: NPV | P99: Annuity | Q99: NPV
L100: 0
L101: 1 | N101: =PMT($B$50,$L$120,$C$50,0,0)*-1 -> 1312352.224 | O101: =N101*(1.05^-L101) -> 1249859.261 | P101: =PMT($B$88,$L$120,$C$88,0,0)*-1 -> 1992499.035 | Q101: =P101*(1.06^-L101) -> 1879716.071
L102: =L101+1 -> 2 | N102: =PMT($B$50,$L$120,$C$50,0,0)*-1 -> 1312352.224 | O102: =N102*(1.06^-L102) -> 1167988.808 | P102: =PMT($B$88,$L$120,$C$88,0,0)*-1 -> 1992499.035 | Q102: =P102*(1.06^-L102) -> 1773317.048
L103: 3 | N103: 1312352.224 | O103: 1101876.234 | P103: 1992499.035 | Q103: 1672940.611
L104: 4 | N104: 1312352.224 | O104: 1039505.881 | P104: 1992499.035 | Q104: 1578245.86
L105: 5 | N105: 1312352.224 | O105: 980665.9253 | P105: 1992499.035 | Q105: 1488911.189
L106: 6 | N106: 1312352.224 | O106: 925156.5333 | P106: 1992499.035 | Q106: 1404633.197
L107: 7 | N107: 1312352.224 | O107: 872789.1824 | P107: 1992499.035 | Q107: 1325125.657
L108: 8 | N108: 1312352.224 | O108: 823386.0211 | P108: 1992499.035 | Q108: 1250118.545
L109: 9 | N109: 1312352.224 | O109: 776779.2652 | P109: 1992499.035 | Q109: 1179357.118
L110: 10 | N110: 1312352.224 | O110: 732810.6276 | P110: 1992499.035 | Q110: 1112601.054
L111: 11 | N111: 1312352.224 | O111: 691330.7807 | P111: 1992499.035 | Q111: 1049623.636
L112: 12 | N112: 1312352.224 | O112: 652198.8497 | P112: 1992499.035 | Q112: 990210.9775
L113: 13 | N113: 1312352.224 | O113: 615281.9337 | P113: 1992499.035 | Q113: 934161.2995
L114: 14 | N114: 1312352.224 | O114: 580454.6544 | P114: 1992499.035 | Q114: 881284.2448
L115: 15 | N115: 1312352.224 | O115: 547598.7306 | P115: 1992499.035 | Q115: 831400.231
L116: 16 | N116: 1312352.224 | O116: 516602.576 | P116: 1992499.035 | Q116: 784339.8405
L117: 17 | N117: 1312352.224 | O117: 487360.9208 | P117: 1992499.035 | Q117: 739943.2458
L118: 18 | N118: 1312352.224 | O118: 459774.4536 | P118: 1992499.035 | Q118: 698059.6658
L119: 19 | N119: 1312352.224 | O119: 433749.4845 | P119: 1992499.035 | Q119: 658546.8546
L120: 20 | N120: 1312352.224 | O120: 409197.6269 | P120: 1992499.035 | Q120: 621270.6175
L122: Total | O122: =SUM(O101:O120) -> 15064367.75 | Q122: =SUM(Q101:Q120) -> 22853806.96
A126: =Input!D90 -> Diesel powered irrigation system
A128: =Input!C94 -> Generator | C128: =IF(Input!$E$8="","",Input!$E$8) -> KES | D128: =Input!E94 -> 150000 | E128: =IF(MOD(E10,Input!$G$94)=0,($D$128*(1+$B$2)^E10),0) -> 0 | F128: =IF(MOD(F10,Input!$G$94)=0,($D$128*(1+$B$2)^F10),0) -> 0 | G128: =IF(MOD(G10,Input!$G$94)=0,($D$128*(1+$B$2)^G10),0) -> 207929.3813 | H128: =IF(MOD(H10,Input!$G$94)=0,($D$128*(1+$B$2)^H10),0) -> 0 | I128: =IF(MOD(I10,Input!$G$94)=0,($D$128*(1+$B$2)^I10),0) -> 0 | J128: =IF(MOD(J10,Input!$G$94)=0,($D$128*(1+$B$2)^J10),0) -> 288230.8506 | K128: =IF(MOD(K10,Input!$G$94)=0,($D$128*(1+$B$2)^K10),0) -> 0 | L128: =IF(MOD(L10,Input!$G$94)=0,($D$128*(1+$B$2)^L10),0) -> 0 | M128: =IF(MOD(M10,Input!$G$94)=0,($D$128*(1+$B$2)^M10),0) -> 399544.4161 | N128: =IF(MOD(N10,Input!$G$94)=0,($D$128*(1+$B$2)^N10),0) -> 0 | O128: =IF(MOD(O10,Input!$G$94)=0,($D$128*(1+$B$2)^O10),0) -> 0 | P128: =IF(MOD(P10,Input!$G$94)=0,($D$128*(1+$B$2)^P10),0) -> 553846.8215 | Q128: =IF(MOD(Q10,Input!$G$94)=0,($D$128*(1+$B$2)^Q10),0) -> 0 | R128: =IF(MOD(R10,Input!$G$94)=0,($D$128*(1+$B$2)^R10),0) -> 0 | S128: =IF(MOD(S10,Input!$G$94)=0,($D$128*(1+$B$2)^S10),0) -> 767740.1794 | T128: =IF(MOD(T10,Input!$G$94)=0,($D$128*(1+$B$2)^T10),0) -> 0 | U128: =IF(MOD(U10,Input!$G$94)=0,($D$128*(1+$B$2)^U10),0) -> 0 | V128: =IF(MOD(V10,Input!$G$94)=0,($D$128*(1+$B$2)^V10),0) -> 1064238.27 | W128: =IF(MOD(W10,Input!$G$94)=0,($D$128*(1+$B$2)^W10),0) -> 0 | X128: =IF(MOD(X10,Input!$G$94)=0,($D$128*(1+$B$2)^X10),0) -> 0 | Y128: =IF(MOD(Y10,Input!$G$94)=0,($D$128*(1+$B$2)^Y10),0) -> 1475242.699 | Z128: =IF(MOD(Z10,Input!$G$94)=0,($D$128*(1+$B$2)^Z10),0) -> 0 | AA128: =IF(MOD(AA10,Input!$G$94)=0,($D$128*(1+$B$2)^AA10),0) -> 0 | AB128: =IF(MOD(AB10,Input!$G$94)=0,($D$128*(1+$B$2)^AB10),0) -> 2044975.345 | AC128: =IF(MOD(AC10,Input!$G$94)=0,($D$128*(1+$B$2)^AC10),0) -> 0
A129: =Input!C95 -> Pump | C129: =IF(Input!$E$8="","",Input!$E$8) -> KES | D129: =Input!E95 -> 150000 | E129: =IF(MOD(E10,Input!$G$95)=0,($D$129*(1+$B$2)^E10),0) -> 0 | F129: =IF(MOD(F10,Input!$G$95)=0,($D$129*(1+$B$2)^F10),0) -> 0 | G129: =IF(MOD(G10,Input!$G$95)=0,($D$129*(1+$B$2)^G10),0) -> 0 | H129: =IF(MOD(H10,Input!$G$95)=0,($D$129*(1+$B$2)^H10),0) -> 0 | I129: =IF(MOD(I10,Input!$G$95)=0,($D$129*(1+$B$2)^I10),0) -> 258503.005 | J129: =IF(MOD(J10,Input!$G$95)=0,($D$129*(1+$B$2)^J10),0) -> 0 | K129: =IF(MOD(K10,Input!$G$95)=0,($D$129*(1+$B$2)^K10),0) -> 0 | L129: =IF(MOD(L10,Input!$G$95)=0,($D$129*(1+$B$2)^L10),0) -> 0 | M129: =IF(MOD(M10,Input!$G$95)=0,($D$129*(1+$B$2)^M10),0) -> 0 | N129: =IF(MOD(N10,Input!$G$95)=0,($D$129*(1+$B$2)^N10),0) -> 445492.024 | O129: =IF(MOD(O10,Input!$G$95)=0,($D$129*(1+$B$2)^O10),0) -> 0 | P129: =IF(MOD(P10,Input!$G$95)=0,($D$129*(1+$B$2)^P10),0) -> 0 | Q129: =IF(MOD(Q10,Input!$G$95)=0,($D$129*(1+$B$2)^Q10),0) -> 0 | R129: =IF(MOD(R10,Input!$G$95)=0,($D$129*(1+$B$2)^R10),0) -> 0 | S129: =IF(MOD(S10,Input!$G$95)=0,($D$129*(1+$B$2)^S10),0) -> 767740.1794 | T129: =IF(MOD(T10,Input!$G$95)=0,($D$129*(1+$B$2)^T10),0) -> 0 | U129: =IF(MOD(U10,Input!$G$95)=0,($D$129*(1+$B$2)^U10),0) -> 0 | V129: =IF(MOD(V10,Input!$G$95)=0,($D$129*(1+$B$2)^V10),0) -> 0 | W129: =IF(MOD(W10,Input!$G$95)=0,($D$129*(1+$B$2)^W10),0) -> 0 | X129: =IF(MOD(X10,Input!$G$95)=0,($D$129*(1+$B$2)^X10),0) -> 1323087.623 | Y129: =IF(MOD(Y10,Input!$G$95)=0,($D$129*(1+$B$2)^Y10),0) -> 0 | Z129: =IF(MOD(Z10,Input!$G$95)=0,($D$129*(1+$B$2)^Z10),0) -> 0 | AA129: =IF(MOD(AA10,Input!$G$95)=0,($D$129*(1+$B$2)^AA10),0) -> 0 | AB129: =IF(MOD(AB10,Input!$G$95)=0,($D$129*(1+$B$2)^AB10),0) -> 0 | AC129: =IF(MOD(AC10,Input!$G$95)=0,($D$129*(1+$B$2)^AC10),0) -> 2280147.509
A130: Wires / tubes | C130: =IF(Input!$E$8="","",Input!$E$8) -> KES | D130: =Input!E96 -> 50000 | E130: =IF(MOD(E10,Input!$G$96)=0,($D$130*(1+$B$2)^E10),0) -> 0 | F130: =IF(MOD(F10,Input!$G$96)=0,($D$130*(1+$B$2)^F10),0) -> 0 | G130: =IF(MOD(G10,Input!$G$96)=0,($D$130*(1+$B$2)^G10),0) -> 0 | H130: =IF(MOD(H10,Input!$G$96)=0,($D$130*(1+$B$2)^H10),0) -> 0 | I130: =IF(MOD(I10,Input!$G$96)=0,($D$130*(1+$B$2)^I10),0) -> 86167.66833 | J130: =IF(MOD(J10,Input!$G$96)=0,($D$130*(1+$B$2)^J10),0) -> 0 | K130: =IF(MOD(K10,Input!$G$96)=0,($D$130*(1+$B$2)^K10),0) -> 0 | L130: =IF(MOD(L10,Input!$G$96)=0,($D$130*(1+$B$2)^L10),0) -> 0 | M130: =IF(MOD(M10,Input!$G$96)=0,($D$130*(1+$B$2)^M10),0) -> 0 | N130: =IF(MOD(N10,Input!$G$96)=0,($D$130*(1+$B$2)^N10),0) -> 148497.3413 | O130: =IF(MOD(O10,Input!$G$96)=0,($D$130*(1+$B$2)^O10),0) -> 0 | P130: =IF(MOD(P10,Input!$G$96)=0,($D$130*(1+$B$2)^P10),0) -> 0 | Q130: =IF(MOD(Q10,Input!$G$96)=0,($D$130*(1+$B$2)^Q10),0) -> 0 | R130: =IF(MOD(R10,Input!$G$96)=0,($D$130*(1+$B$2)^R10),0) -> 0 | S130: =IF(MOD(S10,Input!$G$96)=0,($D$130*(1+$B$2)^S10),0) -> 255913.3931 | T130: =IF(MOD(T10,Input!$G$96)=0,($D$130*(1+$B$2)^T10),0) -> 0 | U130: =IF(MOD(U10,Input!$G$96)=0,($D$130*(1+$B$2)^U10),0) -> 0 | V130: =IF(MOD(V10,Input!$G$96)=0,($D$130*(1+$B$2)^V10),0) -> 0 | W130: =IF(MOD(W10,Input!$G$96)=0,($D$130*(1+$B$2)^W10),0) -> 0 | X130: =IF(MOD(X10,Input!$G$96)=0,($D$130*(1+$B$2)^X10),0) -> 441029.2076 | Y130: =IF(MOD(Y10,Input!$G$96)=0,($D$130*(1+$B$2)^Y10),0) -> 0 | Z130: =IF(MOD(Z10,Input!$G$96)=0,($D$130*(1+$B$2)^Z10),0) -> 0 | AA130: =IF(MOD(AA10,Input!$G$96)=0,($D$130*(1+$B$2)^AA10),0) -> 0 | AB130: =IF(MOD(AB10,Input!$G$96)=0,($D$130*(1+$B$2)^AB10),0) -> 0 | AC130: =IF(MOD(AC10,Input!$G$96)=0,($D$130*(1+$B$2)^AC10),0) -> 760049.1698
A131: =Input!C97 -> Water storage | C131: =IF(Input!$E$8="","",Input!$E$8) -> KES | D131: =Input!E97 -> 55000 | E131: =IF(MOD(E10,Input!$G$97)=0,($D$131*(1+$B$2)^E10),0) -> 0 | F131: =IF(MOD(F10,Input!$G$97)=0,($D$131*(1+$B$2)^F10),0) -> 0 | G131: =IF(MOD(G10,Input!$G$97)=0,($D$131*(1+$B$2)^G10),0) -> 0 | H131: =IF(MOD(H10,Input!$G$97)=0,($D$131*(1+$B$2)^H10),0) -> 0 | I131: =IF(MOD(I10,Input!$G$97)=0,($D$131*(1+$B$2)^I10),0) -> 0 | J131: =IF(MOD(J10,Input!$G$97)=0,($D$131*(1+$B$2)^J10),0) -> 0 | K131: =IF(MOD(K10,Input!$G$97)=0,($D$131*(1+$B$2)^K10),0) -> 0 | L131: =IF(MOD(L10,Input!$G$97)=0,($D$131*(1+$B$2)^L10),0) -> 0 | M131: =IF(MOD(M10,Input!$G$97)=0,($D$131*(1+$B$2)^M10),0) -> 0 | N131: =IF(MOD(N10,Input!$G$97)=0,($D$131*(1+$B$2)^N10),0) -> 0 | O131: =IF(MOD(O10,Input!$G$97)=0,($D$131*(1+$B$2)^O10),0) -> 0 | P131: =IF(MOD(P10,Input!$G$97)=0,($D$131*(1+$B$2)^P10),0) -> 0 | Q131: =IF(MOD(Q10,Input!$G$97)=0,($D$131*(1+$B$2)^Q10),0) -> 0 | R131: =IF(MOD(R10,Input!$G$97)=0,($D$131*(1+$B$2)^R10),0) -> 0 | S131: =IF(MOD(S10,Input!$G$97)=0,($D$131*(1+$B$2)^S10),0) -> 0 | T131: =IF(MOD(T10,Input!$G$97)=0,($D$131*(1+$B$2)^T10),0) -> 0 | U131: =IF(MOD(U10,Input!$G$97)=0,($D$131*(1+$B$2)^U10),0) -> 0 | V131: =IF(MOD(V10,Input!$G$97)=0,($D$131*(1+$B$2)^V10),0) -> 0 | W131: =IF(MOD(W10,Input!$G$97)=0,($D$131*(1+$B$2)^W10),0) -> 0 | X131: =IF(MOD(X10,Input!$G$97)=0,($D$131*(1+$B$2)^X10),0) -> 485132.1284 | Y131: =IF(MOD(Y10,Input!$G$97)=0,($D$131*(1+$B$2)^Y10),0) -> 0 | Z131: =IF(MOD(Z10,Input!$G$97)=0,($D$131*(1+$B$2)^Z10),0) -> 0 | AA131: =IF(MOD(AA10,Input!$G$97)=0,($D$131*(1+$B$2)^AA10),0) -> 0 | AB131: =IF(MOD(AB10,Input!$G$97)=0,($D$131*(1+$B$2)^AB10),0) -> 0 | AC131: =IF(MOD(AC10,Input!$G$97)=0,($D$131*(1+$B$2)^AC10),0) -> 0
A132: Irrigation system | C132: =IF(Input!$E$8="","",Input!$E$8) -> KES | D132: =Input!E98 -> 80000 | E132: =IF(MOD(E10,Input!$G$98)=0,($D$132*(1+$B$2)^E10),0) -> 0 | F132: =IF(MOD(F10,Input!$G$98)=0,($D$132*(1+$B$2)^F10),0) -> 0 | G132: =IF(MOD(G10,Input!$G$98)=0,($D$132*(1+$B$2)^G10),0) -> 0 | H132: =IF(MOD(H10,Input!$G$98)=0,($D$132*(1+$B$2)^H10),0) -> 0 | I132: =IF(MOD(I10,Input!$G$98)=0,($D$132*(1+$B$2)^I10),0) -> 137868.2693 | J132: =IF(MOD(J10,Input!$G$98)=0,($D$132*(1+$B$2)^J10),0) -> 0 | K132: =IF(MOD(K10,Input!$G$98)=0,($D$132*(1+$B$2)^K10),0) -> 0 | L132: =IF(MOD(L10,Input!$G$98)=0,($D$132*(1+$B$2)^L10),0) -> 0 | M132: =IF(MOD(M10,Input!$G$98)=0,($D$132*(1+$B$2)^M10),0) -> 0 | N132: =IF(MOD(N10,Input!$G$98)=0,($D$132*(1+$B$2)^N10),0) -> 237595.7461 | O132: =IF(MOD(O10,Input!$G$98)=0,($D$132*(1+$B$2)^O10),0) -> 0 | P132: =IF(MOD(P10,Input!$G$98)=0,($D$132*(1+$B$2)^P10),0) -> 0 | Q132: =IF(MOD(Q10,Input!$G$98)=0,($D$132*(1+$B$2)^Q10),0) -> 0 | R132: =IF(MOD(R10,Input!$G$98)=0,($D$132*(1+$B$2)^R10),0) -> 0 | S132: =IF(MOD(S10,Input!$G$98)=0,($D$132*(1+$B$2)^S10),0) -> 409461.429 | T132: =IF(MOD(T10,Input!$G$98)=0,($D$132*(1+$B$2)^T10),0) -> 0 | U132: =IF(MOD(U10,Input!$G$98)=0,($D$132*(1+$B$2)^U10),0) -> 0 | V132: =IF(MOD(V10,Input!$G$98)=0,($D$132*(1+$B$2)^V10),0) -> 0 | W132: =IF(MOD(W10,Input!$G$98)=0,($D$132*(1+$B$2)^W10),0) -> 0 | X132: =IF(MOD(X10,Input!$G$98)=0,($D$132*(1+$B$2)^X10),0) -> 705646.7322 | Y132: =IF(MOD(Y10,Input!$G$98)=0,($D$132*(1+$B$2)^Y10),0) -> 0 | Z132: =IF(MOD(Z10,Input!$G$98)=0,($D$132*(1+$B$2)^Z10),0) -> 0 | AA132: =IF(MOD(AA10,Input!$G$98)=0,($D$132*(1+$B$2)^AA10),0) -> 0 | AB132: =IF(MOD(AB10,Input!$G$98)=0,($D$132*(1+$B$2)^AB10),0) -> 0 | AC132: =IF(MOD(AC10,Input!$G$98)=0,($D$132*(1+$B$2)^AC10),0) -> 1216078.672
A133: Drilling | C133: =IF(Input!$E$8="","",Input!$E$8) -> KES | D133: =Input!E99 -> 0
A134: Installation | C134: =IF(Input!$E$8="","",Input!$E$8) -> KES | D134: =Input!E100 -> 25000
A135: Other Costs | C135: =IF(Input!$E$8="","",Input!$E$8) -> KES | D135: =Input!E101 -> 0
A136: Loan Repayment | C136: =IF(Input!$E$8="","",Input!$E$8) -> KES | D136: 0 | E136: =IF(E10<='Loan Repayment Diesel'!Loan_Years,'Loan Repayment Diesel'!Scheduled_Monthly_Payment,0) -> 0 | F136: =IF(F10<='Loan Repayment Diesel'!Loan_Years,'Loan Repayment Diesel'!Scheduled_Monthly_Payment,0) -> 0 | G136: =IF(G10<='Loan Repayment Diesel'!Loan_Years,'Loan Repayment Diesel'!Scheduled_Monthly_Payment,0) -> 0 | H136: =IF(H10<='Loan Repayment Diesel'!Loan_Years,'Loan Repayment Diesel'!Scheduled_Monthly_Payment,0) -> 0 | I136: =IF(I10<='Loan Repayment Diesel'!Loan_Years,'Loan Repayment Diesel'!Scheduled_Monthly_Payment,0) -> 0 | J136: =IF(J10<='Loan Repayment Diesel'!Loan_Years,'Loan Repayment Diesel'!Scheduled_Monthly_Payment,0) -> 0 | K136: =IF(K10<='Loan Repayment Diesel'!Loan_Years,'Loan Repayment Diesel'!Scheduled_Monthly_Payment,0) -> 0 | L136: =IF(L10<='Loan Repayment Diesel'!Loan_Years,'Loan Repayment Diesel'!Scheduled_Monthly_Payment,0) -> 0 | M136: =IF(M10<='Loan Repayment Diesel'!Loan_Years,'Loan Repayment Diesel'!Scheduled_Monthly_Payment,0) -> 0 | N136: =IF(N10<='Loan Repayment Diesel'!Loan_Years,'Loan Repayment Diesel'!Scheduled_Monthly_Payment,0) -> 0 | O136: =IF(O10<='Loan Repayment Diesel'!Loan_Years,'Loan Repayment Diesel'!Scheduled_Monthly_Payment,0) -> 0 | P136: =IF(P10<='Loan Repayment Diesel'!Loan_Years,'Loan Repayment Diesel'!Scheduled_Monthly_Payment,0) -> 0 | Q136: =IF(Q10<='Loan Repayment Diesel'!Loan_Years,'Loan Repayment Diesel'!Scheduled_Monthly_Payment,0) -> 0 | R136: =IF(R10<='Loan Repayment Diesel'!Loan_Years,'Loan Repayment Diesel'!Scheduled_Monthly_Payment,0) -> 0 | S136: =IF(S10<='Loan Repayment Diesel'!Loan_Years,'Loan Repayment Diesel'!Scheduled_Monthly_Payment,0) -> 0 | T136: =IF(T10<='Loan Repayment Diesel'!Loan_Years,'Loan Repayment Diesel'!Scheduled_Monthly_Payment,0) -> 0 | U136: =IF(U10<='Loan Repayment Diesel'!Loan_Years,'Loan Repayment Diesel'!Scheduled_Monthly_Payment,0) -> 0 | V136: =IF(V10<='Loan Repayment Diesel'!Loan_Years,'Loan Repayment Diesel'!Scheduled_Monthly_Payment,0) -> 0 | W136: =IF(W10<='Loan Repayment Diesel'!Loan_Years,'Loan Repayment Diesel'!Scheduled_Monthly_Payment,0) -> 0 | X136: =IF(X10<='Loan Repayment Diesel'!Loan_Years,'Loan Repayment Diesel'!Scheduled_Monthly_Payment,0) -> 0 | Y136: =IF(Y10<='Loan Repayment Diesel'!Loan_Years,'Loan Repayment Diesel'!Scheduled_Monthly_Payment,0) -> 0 | Z136: =IF(Z10<='Loan Repayment Diesel'!Loan_Years,'Loan Repayment Diesel'!Scheduled_Monthly_Payment,0) -> 0 | AA136: =IF(AA10<='Loan Repayment Diesel'!Loan_Years,'Loan Repayment Diesel'!Scheduled_Monthly_Payment,0) -> 0 | AB136: =IF(AB10<='Loan Repayment Diesel'!Loan_Years,'Loan Repayment Diesel'!Scheduled_Monthly_Payment,0) -> 0 | AC136: =IF(AC10<='Loan Repayment Diesel'!Loan_Years,'Loan Repayment Diesel'!Scheduled_Monthly_Payment,0) -> 0
A137: Fuel costs: | C137: =IF(Input!$E$8="","",Input!$E$8) -> KES | D137: 0 | E137: =Input!E106 -> 68466.66667 | F137: =E137*(1+(1*$B$5)) -> 71095.78667 | G137: =F137*(1+(1*$B$5)) -> 73825.86487 | H137: 76660.77809 | I137: 79604.55196 | J137: 82661.36676 | K137: 85835.56324 | L137: 89131.64887 | M137: 92554.30419 | N137: 96108.38947 | O137: 99798.95163 | P137: 103631.2314 | Q137: 107610.6707 | R137: 111742.9204 | S137: 116033.8485 | T137: 120489.5483 | U137: 125116.347 | V137: 129920.8147 | W137: 134909.774 | X137: 140090.3093 | Y137: 145469.7772 | Z137: 151055.8166 | AA137: 156856.36 | AB137: 162879.6442 | AC137: 169134.2226
A138: Operating Costs: | C138: =IF(Input!$E$8="","",Input!$E$8) -> KES | D138: 0 | E138: =SUM(Input!E107:E108) -> 30000 | F138: =E138*(1+(1*$B$2)) -> 33450 | G138: =F138*(1+(1*$B$2)) -> 37296.75 | H138: =G138*(1+(1*$B$2)) -> 41585.87625 | I138: =H138*(1+(1*$B$2)) -> 46368.25202 | J138: =I138*(1+(1*$B$2)) -> 51700.601 | K138: =J138*(1+(1*$B$2)) -> 57646.17012 | L138: =K138*(1+(1*$B$2)) -> 64275.47968 | M138: =L138*(1+(1*$B$2)) -> 71667.15984 | N138: =M138*(1+(1*$B$2)) -> 79908.88322 | O138: =N138*(1+(1*$B$2)) -> 89098.4048 | P138: =O138*(1+(1*$B$2)) -> 99344.72135 | Q138: =P138*(1+(1*$B$2)) -> 110769.3643 | R138: =Q138*(1+(1*$B$2)) -> 123507.8412 | S138: =R138*(1+(1*$B$2)) -> 137711.2429 | T138: =S138*(1+(1*$B$2)) -> 153548.0359 | U138: =T138*(1+(1*$B$2)) -> 171206.06 | V138: =U138*(1+(1*$B$2)) -> 190894.7569 | W138: =V138*(1+(1*$B$2)) -> 212847.6539 | X138: =W138*(1+(1*$B$2)) -> 237325.1341 | Y138: =X138*(1+(1*$B$2)) -> 264617.5246 | Z138: =Y138*(1+(1*$B$2)) -> 295048.5399 | AA138: =Z138*(1+(1*$B$2)) -> 328979.122 | AB138: =AA138*(1+(1*$B$2)) -> 366811.721 | AC138: =AB138*(1+(1*$B$2)) -> 408995.0689
A141: Gross Expenses System per year: | C141: =IF(Input!$E$8="","",Input!$E$8) -> KES | D141: =SUM(D128:D135) -> 510000 | E141: =E137+E138+SUMIF(E128:E136,"<1E+307") -> 98466.66667 | F141: =F137+F138+SUMIF(F128:F136,"<1E+307") -> 104545.7867 | G141: 319051.9961 | H141: 118246.6543 | I141: 608511.7467 | J141: 422592.8183 | K141: 143481.7334 | L141: 153407.1286 | M141: 563765.8802 | N141: 1007602.384 | O141: 188897.3564 | P141: 756822.7742 | Q141: 218380.035 | R141: 235250.7616 | S141: 2454600.272 | T141: 274037.5842 | U141: 296322.407 | V141: 1385053.841 | W141: 347757.4279 | X141: 3332311.134 | Y141: 1885330.001 | Z141: 446104.3565 | AA141: =AA137+AA138+SUMIF(AA128:AA136,"<1E+307") -> 485835.482 | AB141: 2574666.71 | AC141: 4834404.642
A144: Cash Flow: | C144: =IF(Input!$E$8="","",Input!$E$8) -> KES | D144: =D13-D149 -> -510000 | E144: =E13-E149 -> -311306.6667 | F144: =F13-F149 -> -88976.45333 | G144: =G13-G149 -> -48464.84946 | H144: 228808.4562 | I144: 55368.66555 | J144: 111354.9988 | K144: 494310.3322 | L144: 919983.9771 | M144: 993206.9477 | N144: 686292.2995 | O144: 1268151.452 | P144: 1359160.839 | Q144: 2073396.18 | R144: 2864022.333 | S144: 1537886.666 | T144: 2505160.148 | U144: 3574279.913 | V144: 3691212.462 | W144: 4995640.063 | X144: 3480732.46 | Y144: 3594546.344 | Z144: 5347500.261 | AA144: 7280628.879 | AB144: 7366822.68 | AC144: 5459364.6
D146: =IF(D144>0,"Yes","No") -> No | E146: =IF(E144>0,"Yes","No") -> No | F146: No | G146: No | H146: Yes | I146: Yes | J146: Yes | K146: Yes | L146: Yes | M146: Yes | N146: Yes | O146: Yes | P146: Yes | Q146: Yes | R146: Yes | S146: Yes | T146: Yes | U146: Yes | V146: =IF(V144>0,"Yes","No") -> Yes | W146: Yes | X146: Yes | Y146: Yes | Z146: Yes | AA146: Yes | AB146: Yes | AC146: Yes
A147: Payback period against investment (years) | B147: =IF(AC144<0,"no payback",COUNTIF(D144:AC144,"<0")) -> 4 | C147: years
A149: System Life Cycle Costs | B149: =IF($A$150=TRUE,AC150,NA()) -> 23765447.58 | C149: =IF(Input!$E$8="","",Input!$E$8) -> KES | D149: =IF($A$150=TRUE,D150,NA()) -> 510000 | E149: =IF($A$150=TRUE,E150,NA()) -> 608466.6667 | F149: 713012.4533 | G149: 1032064.449 | H149: 1150311.104 | I149: 1758822.85 | J149: 2181415.669 | K149: 2324897.402 | L149: 2478304.531 | M149: 3042070.411 | N149: 4049672.795 | O149: 4238570.151 | P149: 4995392.926 | Q149: 5213772.961 | R149: 5449023.722 | S149: 7903623.994 | T149: 8177661.579 | U149: 8473983.986 | V149: 9859037.827 | W149: 10206795.25 | X149: 13539106.39 | Y149: 15424436.39 | Z149: 15870540.75 | AA149: 16356376.23 | AB149: 18931042.94 | AC149: =IF($A$150=TRUE,AC150,NA()) -> 23765447.58
A150: TRUE | D150: =D141 -> 510000 | E150: =SUM($D$141:E141) -> 608466.6667 | F150: =SUM($D$141:F141) -> 713012.4533 | G150: =SUM($D$141:G141) -> 1032064.449 | H150: =SUM($D$141:H141) -> 1150311.104 | I150: =SUM($D$141:I141) -> 1758822.85 | J150: =SUM($D$141:J141) -> 2181415.669 | K150: =SUM($D$141:K141) -> 2324897.402 | L150: =SUM($D$141:L141) -> 2478304.531 | M150: =SUM($D$141:M141) -> 3042070.411 | N150: =SUM($D$141:N141) -> 4049672.795 | O150: =SUM($D$141:O141) -> 4238570.151 | P150: =SUM($D$141:P141) -> 4995392.926 | Q150: =SUM($D$141:Q141) -> 5213772.961 | R150: =SUM($D$141:R141) -> 5449023.722 | S150: =SUM($D$141:S141) -> 7903623.994 | T150: =SUM($D$141:T141) -> 8177661.579 | U150: =SUM($D$141:U141) -> 8473983.986 | V150: =SUM($D$141:V141) -> 9859037.827 | W150: =SUM($D$141:W141) -> 10206795.25 | X150: =SUM($D$141:X141) -> 13539106.39 | Y150: =SUM($D$141:Y141) -> 15424436.39 | Z150: =SUM($D$141:Z141) -> 15870540.75 | AA150: =SUM($D$141:AA141) -> 16356376.23 | AB150: =SUM($D$141:AB141) -> 18931042.94 | AC150: =SUM($D$141:AC141) -> 23765447.58
A151: Cost of water | C151: =IF(Input!$E$8="","",Input!$E$8&" /m3") -> KES /m3 | D151: =D141/($B$8*365) -> 53.74077977 | E151: =E141/($B$8*365) -> 10.37583421 | F151: 11.01641588 | G151: 33.61980992 | H151: 12.46013217 | I151: 64.12136424 | J151: 44.53032859 | K151: 15.11925536 | L151: 16.16513473 | M151: 59.40630982 | N151: 106.1751722 | O151: 19.90488477 | P151: 79.74950203 | Q151: 23.01159483 | R151: 24.7893321 | S151: 258.6512405 | T151: 28.87645777 | U151: 31.22470042 | V151: 145.9487715 | W151: 36.64461833 | X151: 351.1392133 | Y151: 198.6649106 | Z151: 47.00783525 | AA151: 51.19446596 | AB151: 271.3031306 | AC151: 509.4209317
A152: Average water cost over 25 years | B152: =AVERAGE(D151:AC151) -> 96.3177741 | C152: =IF(Input!$E$8="","",Input!$E$8&" /m3") -> KES /m3 | I152: =AVERAGE(D151:I151) -> 30.88905603 | N152: =AVERAGE(D151:N151) -> 38.79368517
A154: NPV | B154: =Input!E12 -> 0.16 | C154: =NPV(B154,E144:X144)+D144 -> 2749218.553
A155: IRR | C155: =IRR(D144:X144) -> 0.3135212993
F180: Diagramms (Output) - Number:
E184: =Output!B26 -> Net Present Value (NPV) | H184: =Output!B24 -> Internal Rate of Return (IRR) | K184: =Output!B30 -> System Life Cycle Costs (25 years) | N184: =Output!B32 -> Years for payback | R184: Accumulated cash flow | U184: Water cost | V184: 5 years | W184: 10 years | X184: 25 years
E186: =Input!D28 -> Solar powered irrigation system | F186: =C50 -> 7780727.543 | H186: =Input!D28 -> Solar powered irrigation system | I186: =C51 -> 0.3819574298 | K186: =Input!D28 -> Solar powered irrigation system | L186: =B45 -> 15017819.49 | N186: =Input!D28 -> Solar powered irrigation system | O186: =B43 -> 3 | R186: =Input!D28 -> Solar powered irrigation system | S186: =AC40 -> 14206992.69 | U186: =Input!D28 -> Solar powered irrigation system | V186: =IF($A$46=TRUE,I48,NA()) -> 21.21432704 | W186: =IF($A$46=TRUE,N48,NA()) -> 21.42041448 | X186: =IF($A$46=TRUE,B48,NA()) -> 60.86495699
E187: =Input!D58 -> Grid powered irrigation system | F187: =C88 -> 11813209.77 | H187: =Input!D58 -> Grid powered irrigation system | I187: =C89 -> 0.8641154094 | K187: =Input!D58 -> Grid powered irrigation system | L187: =B83 -> 9321116.118 | N187: =Input!D58 -> Grid powered irrigation system | O187: =B81 -> 2 | R187: =Input!D58 -> Grid powered irrigation system | S187: =AC78 -> 19903696.06 | U187: =Input!D58 -> Grid powered irrigation system | V187: =IF($A$84=TRUE,I86,NA()) -> 12.02205126 | W187: =IF($A$84=TRUE,N86,NA()) -> 14.9665243 | X187: =IF($A$84=TRUE,B86,NA()) -> 37.77707756
E188: =Input!D90 -> Diesel powered irrigation system | F188: =C154 -> 2749218.553 | H188: =Input!D90 -> Diesel powered irrigation system | I188: =C155 -> 0.3135212993 | K188: =Input!D90 -> Diesel powered irrigation system | L188: =B149 -> 23765447.58 | N188: =Input!D90 -> Diesel powered irrigation system | O188: =B147 -> 4 | R188: =Input!D90 -> Diesel powered irrigation system | S188: =AC144 -> 5459364.6 | U188: =Input!D90 -> Diesel powered irrigation system | V188: =IF($A$150=TRUE,I152,NA()) -> 30.88905603 | W188: =IF($A$150=TRUE,N152,NA()) -> 38.79368517 | X188: =IF($A$150=TRUE,B152,NA()) -> 96.3177741
E189: =" " & Input!E8 -> KES | H189: % | K189: =" " & Input!E8 -> KES | N189: Years | S189: =" " & Input!E8 -> KES | V189: =" " & Input!E8 -> KES
E190: ="Comparative accumulated income and system costs over first 10 years in " & E189 -> Comparative accumulated income and system costs over first 10 years in KES
E191: ="Comparative accumulated income and system costs over first 25 years in " & E189 -> Comparative accumulated income and system costs over first 25 years in KES
E192: ="Comparative accumulated cash flow over first 10 years in " & E189 -> Comparative accumulated cash flow over first 10 years in KES
E193: ="Average annual water cost in " & E189 &" /m³" -> Average annual water cost in KES /m³
J194: Connections:
E195: =Input!D28 -> Solar powered irrigation system | J195: =Input!E8 & "/kWh" -> KES/kWh
E196: =Input!D58 -> Grid powered irrigation system | J196: =Input!E8 & "/l" -> KES/l

Sheet Loan Repayment Solar (hidden)
A1: Loan Repayment: | F1: =Input!D28 -> Solar powered irrigation system
A2: Bank: | B2: =Input!E54 -> 0
B3: Enter Values | F3: Loan Summary
C4: Loan Amount | D4: =Input!E51 -> 0 | G4: Scheduled Payment | H4: =IF(Values_Entered,-PMT(Interest_Rate/Num_Pmt_Per_Year,Loan_Years*Num_Pmt_Per_Year,Loan_Amount),"0") -> 0
C5: Annual Interest Rate | D5: =Input!E52 -> 0 | G5: Scheduled Number of Payments | H5: =IF(Values_Entered,Loan_Years*Num_Pmt_Per_Year,"") -> 
C6: Loan Period in Years | D6: =Input!E53 -> 0 | G6: Actual Number of Payments | H6: =IF(Values_Entered,Number_of_Payments,"") -> 
C7: Number of Payments Per Year | D7: 1 | G7: Total Early Payments | H7: =IF(Values_Entered,SUMIF(Beg_Bal,">0",Extra_Pay),"") -> 
C8: Start Date of Loan | D8: 2017-01-01 | G8: Total Interest | H8: =IF(Values_Entered,SUMIF(Beg_Bal,">0",Int),"") -> 
C9: Optional Extra Payments | D9: 0
A12: PmtNo. | B12: Payment Date | C12: Beginning Balance | D12: Scheduled Payment | E12: Extra Payment | F12: Total Payment | G12: Principal | H12: Interest | I12: Ending Balance | J12: Cumulative Interest
A14: =IF(Values_Entered,1,"") ->  | B14: =IF(Pay_Num<>"",DATE(YEAR(Loan_Start),MONTH(Loan_Start)+(Pay_Num)*12/Num_Pmt_Per_Year,DAY(Loan_Start)),"") ->  | C14: =IF(Values_Entered,Loan_Amount,"") ->  | D14: =IF(Pay_Num<>"",Scheduled_Monthly_Payment,"") ->  | E14: =IF(AND(Pay_Num<>"",Sched_Pay+Scheduled_Extra_Payments<Beg_Bal),Scheduled_Extra_Payments,IF(AND(Pay_Num<>"",Beg_Bal-Sched_Pay>0),Beg_Bal-Sched_Pay,IF(Pay_Num<>"",0,""))) ->  | F14: =IF(AND(Pay_Num<>"",Sched_Pay+Extra_Pay<Beg_Bal),Sched_Pay+Extra_Pay,IF(Pay_Num<>"",Beg_Bal,"")) ->  | G14: =IF(Pay_Num<>"",Total_Pay-Int,"") ->  | H14: =IF(Pay_Num<>"",Beg_Bal*(Interest_Rate/Num_Pmt_Per_Year),"") ->  | I14: =IF(AND(Pay_Num<>"",Sched_Pay+Extra_Pay<Beg_Bal),Beg_Bal-Princ,IF(Pay_Num<>"",0,"")) ->  | J14: =SUM($H$14:$H14) -> 0
A15: =IF(Values_Entered,A14+1,"") ->  | C15: =IF(Pay_Num<>"",I14,"") ->  | D15: =IF(Pay_Num<>"",Scheduled_Monthly_Payment,"") ->  | G15: =IF(Pay_Num<>"",Total_Pay-Int,"") ->  | H15: =IF(Pay_Num<>"",Beg_Bal*Interest_Rate/Num_Pmt_Per_Year,"") ->  | J15: =SUM($H$14:$H15) -> 0
A16: =IF(Values_Entered,A15+1,"") ->  | D16: =IF(Pay_Num<>"",Scheduled_Monthly_Payment,"") ->  | J16: =SUM($H$14:$H16) -> 0
A17: =IF(Values_Entered,A16+1,"") ->  | D17: =IF(Pay_Num<>"",Scheduled_Monthly_Payment,"") ->  | J17: =SUM($H$14:$H17) -> 0
A18: =IF(Values_Entered,A17+1,"") ->  | J18: =SUM($H$14:$H18) -> 0
A19: =IF(Values_Entered,A18+1,"") ->  | J19: =SUM($H$14:$H19) -> 0
A20: =IF(Values_Entered,A19+1,"") ->  | J20: =SUM($H$14:$H20) -> 0
A21: =IF(Values_Entered,A20+1,"") ->  | J21: =SUM($H$14:$H21) -> 0
A22: =IF(Values_Entered,A21+1,"") ->  | J22: =SUM($H$14:$H22) -> 0
A23: =IF(Values_Entered,A22+1,"") ->  | J23: =SUM($H$14:$H23) -> 0
A24: =IF(Values_Entered,A23+1,"") ->  | J24: =SUM($H$14:$H24) -> 0
A25: =IF(Values_Entered,A24+1,"") ->  | J25: =SUM($H$14:$H25) -> 0
A26: =IF(Values_Entered,A25+1,"") ->  | J26: =SUM($H$14:$H26) -> 0
A27: =IF(Values_Entered,A26+1,"") ->  | J27: =SUM($H$14:$H27) -> 0
A28: =IF(Values_Entered,A27+1,"") ->  | J28: =SUM($H$14:$H28) -> 0
A29: =IF(Values_Entered,A28+1,"") ->  | J29: =SUM($H$14:$H29) -> 0
A30: =IF(Values_Entered,A29+1,"") ->  | J30: =SUM($H$14:$H30) -> 0
A31: =IF(Values_Entered,A30+1,"") ->  | J31: =SUM($H$14:$H31) -> 0
A32: =IF(Values_Entered,A31+1,"") ->  | J32: =SUM($H$14:$H32) -> 0
A33: =IF(Values_Entered,A32+1,"") ->  | J33: =SUM($H$14:$H33) -> 0
A34: =IF(Values_Entered,A33+1,"") ->  | J34: =SUM($H$14:$H34) -> 0
A35: =IF(Values_Entered,A34+1,"") ->  | J35: =SUM($H$14:$H35) -> 0
A36: =IF(Values_Entered,A35+1,"") ->  | J36: =SUM($H$14:$H36) -> 0
A37: =IF(Values_Entered,A36+1,"") ->  | J37: =SUM($H$14:$H37) -> 0
A38: =IF(Values_Entered,A37+1,"") ->  | J38: =SUM($H$14:$H38) -> 0
A39: =IF(Values_Entered,A38+1,"") ->  | J39: =SUM($H$14:$H39) -> 0
A40: =IF(Values_Entered,A39+1,"") ->  | J40: =SUM($H$14:$H40) -> 0
A41: =IF(Values_Entered,A40+1,"") ->  | J41: =SUM($H$14:$H41) -> 0
A42: =IF(Values_Entered,A41+1,"") ->  | J42: =SUM($H$14:$H42) -> 0
A43: =IF(Values_Entered,A42+1,"") ->  | J43: =SUM($H$14:$H43) -> 0
A44: =IF(Values_Entered,A43+1,"") ->  | J44: =SUM($H$14:$H44) -> 0
A45: =IF(Values_Entered,A44+1,"") ->  | J45: =SUM($H$14:$H45) -> 0
A46: =IF(Values_Entered,A45+1,"") ->  | J46: =SUM($H$14:$H46) -> 0
A47: =IF(Values_Entered,A46+1,"") ->  | J47: =SUM($H$14:$H47) -> 0
A48: =IF(Values_Entered,A47+1,"") ->  | J48: =SUM($H$14:$H48) -> 0
A49: =IF(Values_Entered,A48+1,"") ->  | J49: =SUM($H$14:$H49) -> 0
A50: =IF(Values_Entered,A49+1,"") ->  | J50: =SUM($H$14:$H50) -> 0
A51: =IF(Values_Entered,A50+1,"") ->  | J51: =SUM($H$14:$H51) -> 0
A52: =IF(Values_Entered,A51+1,"") ->  | J52: =SUM($H$14:$H52) -> 0
A53: =IF(Values_Entered,A52+1,"") ->  | J53: =SUM($H$14:$H53) -> 0
A54: =IF(Values_Entered,A53+1,"") ->  | J54: =SUM($H$14:$H54) -> 0
A55: =IF(Values_Entered,A54+1,"") ->  | J55: =SUM($H$14:$H55) -> 0
A56: =IF(Values_Entered,A55+1,"") ->  | J56: =SUM($H$14:$H56) -> 0
A57: =IF(Values_Entered,A56+1,"") ->  | J57: =SUM($H$14:$H57) -> 0
A58: =IF(Values_Entered,A57+1,"") ->  | J58: =SUM($H$14:$H58) -> 0
A59: =IF(Values_Entered,A58+1,"") ->  | J59: =SUM($H$14:$H59) -> 0
A60: =IF(Values_Entered,A59+1,"") ->  | J60: =SUM($H$14:$H60) -> 0
A61: =IF(Values_Entered,A60+1,"") ->  | J61: =SUM($H$14:$H61) -> 0
A62: =IF(Values_Entered,A61+1,"") ->  | J62: =SUM($H$14:$H62) -> 0
A63: =IF(Values_Entered,A62+1,"") ->  | J63: =SUM($H$14:$H63) -> 0
A64: =IF(Values_Entered,A63+1,"") ->  | J64: =SUM($H$14:$H64) -> 0
A65: =IF(Values_Entered,A64+1,"") ->  | J65: =SUM($H$14:$H65) -> 0
A66: =IF(Values_Entered,A65+1,"") ->  | J66: =SUM($H$14:$H66) -> 0
A67: =IF(Values_Entered,A66+1,"") ->  | J67: =SUM($H$14:$H67) -> 0
A68: =IF(Values_Entered,A67+1,"") ->  | J68: =SUM($H$14:$H68) -> 0
A69: =IF(Values_Entered,A68+1,"") ->  | J69: =SUM($H$14:$H69) -> 0
A70: =IF(Values_Entered,A69+1,"") ->  | J70: =SUM($H$14:$H70) -> 0
A71: =IF(Values_Entered,A70+1,"") ->  | J71: =SUM($H$14:$H71) -> 0
A72: =IF(Values_Entered,A71+1,"") ->  | J72: =SUM($H$14:$H72) -> 0
A73: =IF(Values_Entered,A72+1,"") ->  | J73: =SUM($H$14:$H73) -> 0
A74: =IF(Values_Entered,A73+1,"") ->  | J74: =SUM($H$14:$H74) -> 0
A75: =IF(Values_Entered,A74+1,"") ->  | J75: =SUM($H$14:$H75) -> 0
A76: =IF(Values_Entered,A75+1,"") ->  | J76: =SUM($H$14:$H76) -> 0
A77: =IF(Values_Entered,A76+1,"") ->  | J77: =SUM($H$14:$H77) -> 0
A78: =IF(Values_Entered,A77+1,"") ->  | B78: =IF(Pay_Num<>"",DATE(YEAR(Loan_Start),MONTH(Loan_Start)+(Pay_Num)*12/Num_Pmt_Per_Year,DAY(Loan_Start)),"") ->  | E78: =IF(AND(Pay_Num<>"",Sched_Pay+Scheduled_Extra_Payments<Beg_Bal),Scheduled_Extra_Payments,IF(AND(Pay_Num<>"",Beg_Bal-Sched_Pay>0),Beg_Bal-Sched_Pay,IF(Pay_Num<>"",0,""))) ->  | F78: =IF(AND(Pay_Num<>"",Sched_Pay+Extra_Pay<Beg_Bal),Sched_Pay+Extra_Pay,IF(Pay_Num<>"",Beg_Bal,"")) ->  | I78: =IF(AND(Pay_Num<>"",Sched_Pay+Extra_Pay<Beg_Bal),Beg_Bal-Princ,IF(Pay_Num<>"",0,"")) ->  | J78: =SUM($H$14:$H78) -> 0
A79: =IF(Values_Entered,A78+1,"") ->  | C79: =IF(Pay_Num<>"",I78,"") ->  | G79: =IF(Pay_Num<>"",Total_Pay-Int,"") ->  | H79: =IF(Pay_Num<>"",Beg_Bal*Interest_Rate/Num_Pmt_Per_Year,"") ->  | J79: =SUM($H$14:$H79) -> 0
A80: =IF(Values_Entered,A79+1,"") ->  | D80: =IF(Pay_Num<>"",Scheduled_Monthly_Payment,"") ->  | J80: =SUM($H$14:$H80) -> 0
A81: =IF(Values_Entered,A80+1,"") ->  | J81: =SUM($H$14:$H81) -> 0
A82: =IF(Values_Entered,A81+1,"") ->  | J82: =SUM($H$14:$H82) -> 0
A83: =IF(Values_Entered,A82+1,"") ->  | J83: =SUM($H$14:$H83) -> 0
A84: =IF(Values_Entered,A83+1,"") ->  | J84: =SUM($H$14:$H84) -> 0
A85: =IF(Values_Entered,A84+1,"") ->  | J85: =SUM($H$14:$H85) -> 0
A86: =IF(Values_Entered,A85+1,"") ->  | J86: =SUM($H$14:$H86) -> 0
A87: =IF(Values_Entered,A86+1,"") ->  | J87: =SUM($H$14:$H87) -> 0
A88: =IF(Values_Entered,A87+1,"") ->  | J88: =SUM($H$14:$H88) -> 0
A89: =IF(Values_Entered,A88+1,"") ->  | J89: =SUM($H$14:$H89) -> 0
A90: =IF(Values_Entered,A89+1,"") ->  | J90: =SUM($H$14:$H90) -> 0
A91: =IF(Values_Entered,A90+1,"") ->  | J91: =SUM($H$14:$H91) -> 0
A92: =IF(Values_Entered,A91+1,"") ->  | J92: =SUM($H$14:$H92) -> 0
A93: =IF(Values_Entered,A92+1,"") ->  | J93: =SUM($H$14:$H93) -> 0
A94: =IF(Values_Entered,A93+1,"") ->  | J94: =SUM($H$14:$H94) -> 0
A95: =IF(Values_Entered,A94+1,"") ->  | J95: =SUM($H$14:$H95) -> 0
A96: =IF(Values_Entered,A95+1,"") ->  | J96: =SUM($H$14:$H96) -> 0
A97: =IF(Values_Entered,A96+1,"") ->  | J97: =SUM($H$14:$H97) -> 0
A98: =IF(Values_Entered,A97+1,"") ->  | J98: =SUM($H$14:$H98) -> 0
A99: =IF(Values_Entered,A98+1,"") ->  | J99: =SUM($H$14:$H99) -> 0
A100: =IF(Values_Entered,A99+1,"") ->  | J100: =SUM($H$14:$H100) -> 0
A101: =IF(Values_Entered,A100+1,"") ->  | J101: =SUM($H$14:$H101) -> 0
A102: =IF(Values_Entered,A101+1,"") ->  | J102: =SUM($H$14:$H102) -> 0
A103: =IF(Values_Entered,A102+1,"") ->  | J103: =SUM($H$14:$H103) -> 0
A104: =IF(Values_Entered,A103+1,"") ->  | J104: =SUM($H$14:$H104) -> 0
A105: =IF(Values_Entered,A104+1,"") ->  | J105: =SUM($H$14:$H105) -> 0
A106: =IF(Values_Entered,A105+1,"") ->  | J106: =SUM($H$14:$H106) -> 0
A107: =IF(Values_Entered,A106+1,"") ->  | J107: =SUM($H$14:$H107) -> 0
A108: =IF(Values_Entered,A107+1,"") ->  | J108: =SUM($H$14:$H108) -> 0
A109: =IF(Values_Entered,A108+1,"") ->  | J109: =SUM($H$14:$H109) -> 0
A110: =IF(Values_Entered,A109+1,"") ->  | J110: =SUM($H$14:$H110) -> 0
A111: =IF(Values_Entered,A110+1,"") ->  | J111: =SUM($H$14:$H111) -> 0
A112: =IF(Values_Entered,A111+1,"") ->  | J112: =SUM($H$14:$H112) -> 0
A113: =IF(Values_Entered,A112+1,"") ->  | J113: =SUM($H$14:$H113) -> 0
A114: =IF(Values_Entered,A113+1,"") ->  | J114: =SUM($H$14:$H114) -> 0
A115: =IF(Values_Entered,A114+1,"") ->  | J115: =SUM($H$14:$H115) -> 0
A116: =IF(Values_Entered,A115+1,"") ->  | J116: =SUM($H$14:$H116) -> 0
A117: =IF(Values_Entered,A116+1,"") ->  | J117: =SUM($H$14:$H117) -> 0
A118: =IF(Values_Entered,A117+1,"") ->  | J118: =SUM($H$14:$H118) -> 0
A119: =IF(Values_Entered,A118+1,"") ->  | J119: =SUM($H$14:$H119) -> 0
A120: =IF(Values_Entered,A119+1,"") ->  | J120: =SUM($H$14:$H120) -> 0
A121: =IF(Values_Entered,A120+1,"") ->  | J121: =SUM($H$14:$H121) -> 0
A122: =IF(Values_Entered,A121+1,"") ->  | J122: =SUM($H$14:$H122) -> 0
A123: =IF(Values_Entered,A122+1,"") ->  | J123: =SUM($H$14:$H123) -> 0
A124: =IF(Values_Entered,A123+1,"") ->  | J124: =SUM($H$14:$H124) -> 0
A125: =IF(Values_Entered,A124+1,"") ->  | J125: =SUM($H$14:$H125) -> 0
A126: =IF(Values_Entered,A125+1,"") ->  | J126: =SUM($H$14:$H126) -> 0
A127: =IF(Values_Entered,A126+1,"") ->  | J127: =SUM($H$14:$H127) -> 0
A128: =IF(Values_Entered,A127+1,"") ->  | J128: =SUM($H$14:$H128) -> 0
A129: =IF(Values_Entered,A128+1,"") ->  | J129: =SUM($H$14:$H129) -> 0
A130: =IF(Values_Entered,A129+1,"") ->  | J130: =SUM($H$14:$H130) -> 0
A131: =IF(Values_Entered,A130+1,"") ->  | J131: =SUM($H$14:$H131) -> 0
A132: =IF(Values_Entered,A131+1,"") ->  | J132: =SUM($H$14:$H132) -> 0
A133: =IF(Values_Entered,A132+1,"") ->  | J133: =SUM($H$14:$H133) -> 0
A134: =IF(Values_Entered,A133+1,"") ->  | J134: =SUM($H$14:$H134) -> 0
A135: =IF(Values_Entered,A134+1,"") ->  | J135: =SUM($H$14:$H135) -> 0
A136: =IF(Values_Entered,A135+1,"") ->  | J136: =SUM($H$14:$H136) -> 0
A137: =IF(Values_Entered,A136+1,"") ->  | J137: =SUM($H$14:$H137) -> 0
A138: =IF(Values_Entered,A137+1,"") ->  | J138: =SUM($H$14:$H138) -> 0
A139: =IF(Values_Entered,A138+1,"") ->  | J139: =SUM($H$14:$H139) -> 0
A140: =IF(Values_Entered,A139+1,"") ->  | J140: =SUM($H$14:$H140) -> 0
A141: =IF(Values_Entered,A140+1,"") ->  | J141: =SUM($H$14:$H141) -> 0
A142: =IF(Values_Entered,A141+1,"") ->  | B142: =IF(Pay_Num<>"",DATE(YEAR(Loan_Start),MONTH(Loan_Start)+(Pay_Num)*12/Num_Pmt_Per_Year,DAY(Loan_Start)),"") ->  | E142: =IF(AND(Pay_Num<>"",Sched_Pay+Scheduled_Extra_Payments<Beg_Bal),Scheduled_Extra_Payments,IF(AND(Pay_Num<>"",Beg_Bal-Sched_Pay>0),Beg_Bal-Sched_Pay,IF(Pay_Num<>"",0,""))) ->  | F142: =IF(AND(Pay_Num<>"",Sched_Pay+Extra_Pay<Beg_Bal),Sched_Pay+Extra_Pay,IF(Pay_Num<>"",Beg_Bal,"")) ->  | I142: =IF(AND(Pay_Num<>"",Sched_Pay+Extra_Pay<Beg_Bal),Beg_Bal-Princ,IF(Pay_Num<>"",0,"")) ->  | J142: =SUM($H$14:$H142) -> 0
A143: =IF(Values_Entered,A142+1,"") ->  | C143: =IF(Pay_Num<>"",I142,"") ->  | G143: =IF(Pay_Num<>"",Total_Pay-Int,"") ->  | H143: =IF(Pay_Num<>"",Beg_Bal*Interest_Rate/Num_Pmt_Per_Year,"") ->  | J143: =SUM($H$14:$H143) -> 0
A144: =IF(Values_Entered,A143+1,"") ->  | D144: =IF(Pay_Num<>"",Scheduled_Monthly_Payment,"") ->  | J144: =SUM($H$14:$H144) -> 0
A145: =IF(Values_Entered,A144+1,"") ->  | J145: =SUM($H$14:$H145) -> 0
A146: =IF(Values_Entered,A145+1,"") ->  | J146: =SUM($H$14:$H146) -> 0
A147: =IF(Values_Entered,A146+1,"") ->  | J147: =SUM($H$14:$H147) -> 0
A148: =IF(Values_Entered,A147+1,"") ->  | J148: =SUM($H$14:$H148) -> 0
A149: =IF(Values_Entered,A148+1,"") ->  | J149: =SUM($H$14:$H149) -> 0
A150: =IF(Values_Entered,A149+1,"") ->  | J150: =SUM($H$14:$H150) -> 0
A151: =IF(Values_Entered,A150+1,"") ->  | J151: =SUM($H$14:$H151) -> 0
A152: =IF(Values_Entered,A151+1,"") ->  | J152: =SUM($H$14:$H152) -> 0
A153: =IF(Values_Entered,A152+1,"") ->  | J153: =SUM($H$14:$H153) -> 0
A154: =IF(Values_Entered,A153+1,"") ->  | J154: =SUM($H$14:$H154) -> 0
A155: =IF(Values_Entered,A154+1,"") ->  | J155: =SUM($H$14:$H155) -> 0
A156: =IF(Values_Entered,A155+1,"") ->  | J156: =SUM($H$14:$H156) -> 0
A157: =IF(Values_Entered,A156+1,"") ->  | J157: =SUM($H$14:$H157) -> 0
A158: =IF(Values_Entered,A157+1,"") ->  | J158: =SUM($H$14:$H158) -> 0
A159: =IF(Values_Entered,A158+1,"") ->  | J159: =SUM($H$14:$H159) -> 0
A160: =IF(Values_Entered,A159+1,"") ->  | J160: =SUM($H$14:$H160) -> 0
A161: =IF(Values_Entered,A160+1,"") ->  | J161: =SUM($H$14:$H161) -> 0
A162: =IF(Values_Entered,A161+1,"") ->  | J162: =SUM($H$14:$H162) -> 0
A163: =IF(Values_Entered,A162+1,"") ->  | J163: =SUM($H$14:$H163) -> 0
A164: =IF(Values_Entered,A163+1,"") ->  | J164: =SUM($H$14:$H164) -> 0
A165: =IF(Values_Entered,A164+1,"") ->  | J165: =SUM($H$14:$H165) -> 0
A166: =IF(Values_Entered,A165+1,"") ->  | J166: =SUM($H$14:$H166) -> 0
A167: =IF(Values_Entered,A166+1,"") ->  | J167: =SUM($H$14:$H167) -> 0
A168: =IF(Values_Entered,A167+1,"") ->  | J168: =SUM($H$14:$H168) -> 0
A169: =IF(Values_Entered,A168+1,"") ->  | J169: =SUM($H$14:$H169) -> 0
A170: =IF(Values_Entered,A169+1,"") ->  | J170: =SUM($H$14:$H170) -> 0
A171: =IF(Values_Entered,A170+1,"") ->  | J171: =SUM($H$14:$H171) -> 0
A172: =IF(Values_Entered,A171+1,"") ->  | J172: =SUM($H$14:$H172) -> 0
A173: =IF(Values_Entered,A172+1,"") ->  | J173: =SUM($H$14:$H173) -> 0
A174: =IF(Values_Entered,A173+1,"") ->  | J174: =SUM($H$14:$H174) -> 0
A175: =IF(Values_Entered,A174+1,"") ->  | J175: =SUM($H$14:$H175) -> 0
A176: =IF(Values_Entered,A175+1,"") ->  | J176: =SUM($H$14:$H176) -> 0
A177: =IF(Values_Entered,A176+1,"") ->  | J177: =SUM($H$14:$H177) -> 0
A178: =IF(Values_Entered,A177+1,"") ->  | J178: =SUM($H$14:$H178) -> 0
A179: =IF(Values_Entered,A178+1,"") ->  | J179: =SUM($H$14:$H179) -> 0
A180: =IF(Values_Entered,A179+1,"") ->  | J180: =SUM($H$14:$H180) -> 0
A181: =IF(Values_Entered,A180+1,"") ->  | J181: =SUM($H$14:$H181) -> 0
A182: =IF(Values_Entered,A181+1,"") ->  | J182: =SUM($H$14:$H182) -> 0
A183: =IF(Values_Entered,A182+1,"") ->  | J183: =SUM($H$14:$H183) -> 0
A184: =IF(Values_Entered,A183+1,"") ->  | J184: =SUM($H$14:$H184) -> 0
A185: =IF(Values_Entered,A184+1,"") ->  | J185: =SUM($H$14:$H185) -> 0
A186: =IF(Values_Entered,A185+1,"") ->  | J186: =SUM($H$14:$H186) -> 0
A187: =IF(Values_Entered,A186+1,"") ->  | J187: =SUM($H$14:$H187) -> 0
A188: =IF(Values_Entered,A187+1,"") ->  | J188: =SUM($H$14:$H188) -> 0
A189: =IF(Values_Entered,A188+1,"") ->  | J189: =SUM($H$14:$H189) -> 0
A190: =IF(Values_Entered,A189+1,"") ->  | J190: =SUM($H$14:$H190) -> 0
A191: =IF(Values_Entered,A190+1,"") ->  | J191: =SUM($H$14:$H191) -> 0
A192: =IF(Values_Entered,A191+1,"") ->  | J192: =SUM($H$14:$H192) -> 0
A193: =IF(Values_Entered,A192+1,"") ->  | J193: =SUM($H$14:$H193) -> 0
A194: =IF(Values_Entered,A193+1,"") ->  | J194: =SUM($H$14:$H194) -> 0
A195: =IF(Values_Entered,A194+1,"") ->  | J195: =SUM($H$14:$H195) -> 0
A196: =IF(Values_Entered,A195+1,"") ->  | J196: =SUM($H$14:$H196) -> 0
A197: =IF(Values_Entered,A196+1,"") ->  | J197: =SUM($H$14:$H197) -> 0
A198: =IF(Values_Entered,A197+1,"") ->  | J198: =SUM($H$14:$H198) -> 0
A199: =IF(Values_Entered,A198+1,"") ->  | J199: =SUM($H$14:$H199) -> 0
A200: =IF(Values_Entered,A199+1,"") ->  | J200: =SUM($H$14:$H200) -> 0
A201: =IF(Values_Entered,A200+1,"") ->  | J201: =SUM($H$14:$H201) -> 0
A202: =IF(Values_Entered,A201+1,"") ->  | J202: =SUM($H$14:$H202) -> 0
A203: =IF(Values_Entered,A202+1,"") ->  | J203: =SUM($H$14:$H203) -> 0
... 170 more rows

Sheet Loan Repayment Grid (hidden)
A1: Loan Repayment: | F1: =Input!D58 -> Grid powered irrigation system
A2: Bank: | B2: =Input!E86 -> 0
B3: Enter Values | F3: Loan Summary
C4: Loan Amount | D4: =Input!E83 -> 0 | G4: Scheduled Payment | H4: =IF(Values_Entered,-PMT(Interest_Rate/Num_Pmt_Per_Year,Loan_Years*Num_Pmt_Per_Year,Loan_Amount),"0") -> 0
C5: Annual Interest Rate | D5: =Input!E84 -> 0 | G5: Scheduled Number of Payments | H5: =IF(Values_Entered,Loan_Years*Num_Pmt_Per_Year,"") -> 
C6: Loan Period in Years | D6: =Input!E85 -> 0 | G6: Actual Number of Payments | H6: =IF(Values_Entered,Number_of_Payments,"") -> 
C7: Number of Payments Per Year | D7: 1 | G7: Total Early Payments | H7: =IF(Values_Entered,SUMIF(Beg_Bal,">0",Extra_Pay),"") -> 
C8: Start Date of Loan | D8: 2017-01-01 | G8: Total Interest | H8: =IF(Values_Entered,SUMIF(Beg_Bal,">0",Int),"") -> 
C9: Optional Extra Payments | D9: 0
A12: PmtNo. | B12: Payment Date | C12: Beginning Balance | D12: Scheduled Payment | E12: Extra Payment | F12: Total Payment | G12: Principal | H12: Interest | I12: Ending Balance | J12: Cumulative Interest
A14: =IF(Values_Entered,1,"") ->  | B14: =IF(Pay_Num<>"",DATE(YEAR(Loan_Start),MONTH(Loan_Start)+(Pay_Num)*12/Num_Pmt_Per_Year,DAY(Loan_Start)),"") ->  | C14: =IF(Values_Entered,Loan_Amount,"") ->  | D14: =IF(Pay_Num<>"",Scheduled_Monthly_Payment,"") ->  | E14: =IF(AND(Pay_Num<>"",Sched_Pay+Scheduled_Extra_Payments<Beg_Bal),Scheduled_Extra_Payments,IF(AND(Pay_Num<>"",Beg_Bal-Sched_Pay>0),Beg_Bal-Sched_Pay,IF(Pay_Num<>"",0,""))) ->  | F14: =IF(AND(Pay_Num<>"",Sched_Pay+Extra_Pay<Beg_Bal),Sched_Pay+Extra_Pay,IF(Pay_Num<>"",Beg_Bal,"")) ->  | G14: =IF(Pay_Num<>"",Total_Pay-Int,"") ->  | H14: =IF(Pay_Num<>"",Beg_Bal*(Interest_Rate/Num_Pmt_Per_Year),"") ->  | I14: =IF(AND(Pay_Num<>"",Sched_Pay+Extra_Pay<Beg_Bal),Beg_Bal-Princ,IF(Pay_Num<>"",0,"")) ->  | J14: =SUM($H$14:$H14) -> 0
A15: =IF(Values_Entered,A14+1,"") ->  | C15: =IF(Pay_Num<>"",I14,"") ->  | D15: =IF(Pay_Num<>"",Scheduled_Monthly_Payment,"") ->  | G15: =IF(Pay_Num<>"",Total_Pay-Int,"") ->  | H15: =IF(Pay_Num<>"",Beg_Bal*Interest_Rate/Num_Pmt_Per_Year,"") ->  | J15: =SUM($H$14:$H15) -> 0
A16: =IF(Values_Entered,A15+1,"") ->  | D16: =IF(Pay_Num<>"",Scheduled_Monthly_Payment,"") ->  | J16: =SUM($H$14:$H16) -> 0
A17: =IF(Values_Entered,A16+1,"") ->  | D17: =IF(Pay_Num<>"",Scheduled_Monthly_Payment,"") ->  | J17: =SUM($H$14:$H17) -> 0
A18: =IF(Values_Entered,A17+1,"") ->  | J18: =SUM($H$14:$H18) -> 0
A19: =IF(Values_Entered,A18+1,"") ->  | J19: =SUM($H$14:$H19) -> 0
A20: =IF(Values_Entered,A19+1,"") ->  | J20: =SUM($H$14:$H20) -> 0
A21: =IF(Values_Entered,A20+1,"") ->  | J21: =SUM($H$14:$H21) -> 0
A22: =IF(Values_Entered,A21+1,"") ->  | J22: =SUM($H$14:$H22) -> 0
A23: =IF(Values_Entered,A22+1,"") ->  | J23: =SUM($H$14:$H23) -> 0
A24: =IF(Values_Entered,A23+1,"") ->  | J24: =SUM($H$14:$H24) -> 0
A25: =IF(Values_Entered,A24+1,"") ->  | J25: =SUM($H$14:$H25) -> 0
A26: =IF(Values_Entered,A25+1,"") ->  | J26: =SUM($H$14:$H26) -> 0
A27: =IF(Values_Entered,A26+1,"") ->  | J27: =SUM($H$14:$H27) -> 0
A28: =IF(Values_Entered,A27+1,"") ->  | J28: =SUM($H$14:$H28) -> 0
A29: =IF(Values_Entered,A28+1,"") ->  | J29: =SUM($H$14:$H29) -> 0
A30: =IF(Values_Entered,A29+1,"") ->  | J30: =SUM($H$14:$H30) -> 0
A31: =IF(Values_Entered,A30+1,"") ->  | J31: =SUM($H$14:$H31) -> 0
A32: =IF(Values_Entered,A31+1,"") ->  | J32: =SUM($H$14:$H32) -> 0
A33: =IF(Values_Entered,A32+1,"") ->  | J33: =SUM($H$14:$H33) -> 0
A34: =IF(Values_Entered,A33+1,"") ->  | J34: =SUM($H$14:$H34) -> 0
A35: =IF(Values_Entered,A34+1,"") ->  | J35: =SUM($H$14:$H35) -> 0
A36: =IF(Values_Entered,A35+1,"") ->  | J36: =SUM($H$14:$H36) -> 0
A37: =IF(Values_Entered,A36+1,"") ->  | J37: =SUM($H$14:$H37) -> 0
A38: =IF(Values_Entered,A37+1,"") ->  | J38: =SUM($H$14:$H38) -> 0
A39: =IF(Values_Entered,A38+1,"") ->  | J39: =SUM($H$14:$H39) -> 0
A40: =IF(Values_Entered,A39+1,"") ->  | J40: =SUM($H$14:$H40) -> 0
A41: =IF(Values_Entered,A40+1,"") ->  | J41: =SUM($H$14:$H41) -> 0
A42: =IF(Values_Entered,A41+1,"") ->  | J42: =SUM($H$14:$H42) -> 0
A43: =IF(Values_Entered,A42+1,"") ->  | J43: =SUM($H$14:$H43) -> 0
A44: =IF(Values_Entered,A43+1,"") ->  | J44: =SUM($H$14:$H44) -> 0
A45: =IF(Values_Entered,A44+1,"") ->  | J45: =SUM($H$14:$H45) -> 0
A46: =IF(Values_Entered,A45+1,"") ->  | J46: =SUM($H$14:$H46) -> 0
A47: =IF(Values_Entered,A46+1,"") ->  | J47: =SUM($H$14:$H47) -> 0
A48: =IF(Values_Entered,A47+1,"") ->  | J48: =SUM($H$14:$H48) -> 0
A49: =IF(Values_Entered,A48+1,"") ->  | J49: =SUM($H$14:$H49) -> 0
A50: =IF(Values_Entered,A49+1,"") ->  | J50: =SUM($H$14:$H50) -> 0
A51: =IF(Values_Entered,A50+1,"") ->  | J51: =SUM($H$14:$H51) -> 0
A52: =IF(Values_Entered,A51+1,"") ->  | J52: =SUM($H$14:$H52) -> 0
A53: =IF(Values_Entered,A52+1,"") ->  | J53: =SUM($H$14:$H53) -> 0
A54: =IF(Values_Entered,A53+1,"") ->  | J54: =SUM($H$14:$H54) -> 0
A55: =IF(Values_Entered,A54+1,"") ->  | J55: =SUM($H$14:$H55) -> 0
A56: =IF(Values_Entered,A55+1,"") ->  | J56: =SUM($H$14:$H56) -> 0
A57: =IF(Values_Entered,A56+1,"") ->  | J57: =SUM($H$14:$H57) -> 0
A58: =IF(Values_Entered,A57+1,"") ->  | J58: =SUM($H$14:$H58) -> 0
A59: =IF(Values_Entered,A58+1,"") ->  | J59: =SUM($H$14:$H59) -> 0
A60: =IF(Values_Entered,A59+1,"") ->  | J60: =SUM($H$14:$H60) -> 0
A61: =IF(Values_Entered,A60+1,"") ->  | J61: =SUM($H$14:$H61) -> 0
A62: =IF(Values_Entered,A61+1,"") ->  | J62: =SUM($H$14:$H62) -> 0
A63: =IF(Values_Entered,A62+1,"") ->  | J63: =SUM($H$14:$H63) -> 0
A64: =IF(Values_Entered,A63+1,"") ->  | J64: =SUM($H$14:$H64) -> 0
A65: =IF(Values_Entered,A64+1,"") ->  | J65: =SUM($H$14:$H65) -> 0
A66: =IF(Values_Entered,A65+1,"") ->  | J66: =SUM($H$14:$H66) -> 0
A67: =IF(Values_Entered,A66+1,"") ->  | J67: =SUM($H$14:$H67) -> 0
A68: =IF(Values_Entered,A67+1,"") ->  | J68: =SUM($H$14:$H68) -> 0
A69: =IF(Values_Entered,A68+1,"") ->  | J69: =SUM($H$14:$H69) -> 0
A70: =IF(Values_Entered,A69+1,"") ->  | J70: =SUM($H$14:$H70) -> 0
A71: =IF(Values_Entered,A70+1,"") ->  | J71: =SUM($H$14:$H71) -> 0
A72: =IF(Values_Entered,A71+1,"") ->  | J72: =SUM($H$14:$H72) -> 0
A73: =IF(Values_Entered,A72+1,"") ->  | J73: =SUM($H$14:$H73) -> 0
A74: =IF(Values_Entered,A73+1,"") ->  | J74: =SUM($H$14:$H74) -> 0
A75: =IF(Values_Entered,A74+1,"") ->  | J75: =SUM($H$14:$H75) -> 0
A76: =IF(Values_Entered,A75+1,"") ->  | J76: =SUM($H$14:$H76) -> 0
A77: =IF(Values_Entered,A76+1,"") ->  | J77: =SUM($H$14:$H77) -> 0
A78: =IF(Values_Entered,A77+1,"") ->  | B78: =IF(Pay_Num<>"",DATE(YEAR(Loan_Start),MONTH(Loan_Start)+(Pay_Num)*12/Num_Pmt_Per_Year,DAY(Loan_Start)),"") ->  | E78: =IF(AND(Pay_Num<>"",Sched_Pay+Scheduled_Extra_Payments<Beg_Bal),Scheduled_Extra_Payments,IF(AND(Pay_Num<>"",Beg_Bal-Sched_Pay>0),Beg_Bal-Sched_Pay,IF(Pay_Num<>"",0,""))) ->  | F78: =IF(AND(Pay_Num<>"",Sched_Pay+Extra_Pay<Beg_Bal),Sched_Pay+Extra_Pay,IF(Pay_Num<>"",Beg_Bal,"")) ->  | I78: =IF(AND(Pay_Num<>"",Sched_Pay+Extra_Pay<Beg_Bal),Beg_Bal-Princ,IF(Pay_Num<>"",0,"")) ->  | J78: =SUM($H$14:$H78) -> 0
A79: =IF(Values_Entered,A78+1,"") ->  | C79: =IF(Pay_Num<>"",I78,"") ->  | G79: =IF(Pay_Num<>"",Total_Pay-Int,"") ->  | H79: =IF(Pay_Num<>"",Beg_Bal*Interest_Rate/Num_Pmt_Per_Year,"") ->  | J79: =SUM($H$14:$H79) -> 0
A80: =IF(Values_Entered,A79+1,"") ->  | D80: =IF(Pay_Num<>"",Scheduled_Monthly_Payment,"") ->  | J80: =SUM($H$14:$H80) -> 0
A81: =IF(Values_Entered,A80+1,"") ->  | J81: =SUM($H$14:$H81) -> 0
A82: =IF(Values_Entered,A81+1,"") ->  | J82: =SUM($H$14:$H82) -> 0
A83: =IF(Values_Entered,A82+1,"") ->  | J83: =SUM($H$14:$H83) -> 0
A84: =IF(Values_Entered,A83+1,"") ->  | J84: =SUM($H$14:$H84) -> 0
A85: =IF(Values_Entered,A84+1,"") ->  | J85: =SUM($H$14:$H85) -> 0
A86: =IF(Values_Entered,A85+1,"") ->  | J86: =SUM($H$14:$H86) -> 0
A87: =IF(Values_Entered,A86+1,"") ->  | J87: =SUM($H$14:$H87) -> 0
A88: =IF(Values_Entered,A87+1,"") ->  | J88: =SUM($H$14:$H88) -> 0
A89: =IF(Values_Entered,A88+1,"") ->  | J89: =SUM($H$14:$H89) -> 0
A90: =IF(Values_Entered,A89+1,"") ->  | J90: =SUM($H$14:$H90) -> 0
A91: =IF(Values_Entered,A90+1,"") ->  | J91: =SUM($H$14:$H91) -> 0
A92: =IF(Values_Entered,A91+1,"") ->  | J92: =SUM($H$14:$H92) -> 0
A93: =IF(Values_Entered,A92+1,"") ->  | J93: =SUM($H$14:$H93) -> 0
A94: =IF(Values_Entered,A93+1,"") ->  | J94: =SUM($H$14:$H94) -> 0
A95: =IF(Values_Entered,A94+1,"") ->  | J95: =SUM($H$14:$H95) -> 0
A96: =IF(Values_Entered,A95+1,"") ->  | J96: =SUM($H$14:$H96) -> 0
A97: =IF(Values_Entered,A96+1,"") ->  | J97: =SUM($H$14:$H97) -> 0
A98: =IF(Values_Entered,A97+1,"") ->  | J98: =SUM($H$14:$H98) -> 0
A99: =IF(Values_Entered,A98+1,"") ->  | J99: =SUM($H$14:$H99) -> 0
A100: =IF(Values_Entered,A99+1,"") ->  | J100: =SUM($H$14:$H100) -> 0
A101: =IF(Values_Entered,A100+1,"") ->  | J101: =SUM($H$14:$H101) -> 0
A102: =IF(Values_Entered,A101+1,"") ->  | J102: =SUM($H$14:$H102) -> 0
A103: =IF(Values_Entered,A102+1,"") ->  | J103: =SUM($H$14:$H103) -> 0
A104: =IF(Values_Entered,A103+1,"") ->  | J104: =SUM($H$14:$H104) -> 0
A105: =IF(Values_Entered,A104+1,"") ->  | J105: =SUM($H$14:$H105) -> 0
A106: =IF(Values_Entered,A105+1,"") ->  | J106: =SUM($H$14:$H106) -> 0
A107: =IF(Values_Entered,A106+1,"") ->  | J107: =SUM($H$14:$H107) -> 0
A108: =IF(Values_Entered,A107+1,"") ->  | J108: =SUM($H$14:$H108) -> 0
A109: =IF(Values_Entered,A108+1,"") ->  | J109: =SUM($H$14:$H109) -> 0
A110: =IF(Values_Entered,A109+1,"") ->  | J110: =SUM($H$14:$H110) -> 0
A111: =IF(Values_Entered,A110+1,"") ->  | J111: =SUM($H$14:$H111) -> 0
A112: =IF(Values_Entered,A111+1,"") ->  | J112: =SUM($H$14:$H112) -> 0
A113: =IF(Values_Entered,A112+1,"") ->  | J113: =SUM($H$14:$H113) -> 0
A114: =IF(Values_Entered,A113+1,"") ->  | J114: =SUM($H$14:$H114) -> 0
A115: =IF(Values_Entered,A114+1,"") ->  | J115: =SUM($H$14:$H115) -> 0
A116: =IF(Values_Entered,A115+1,"") ->  | J116: =SUM($H$14:$H116) -> 0
A117: =IF(Values_Entered,A116+1,"") ->  | J117: =SUM($H$14:$H117) -> 0
A118: =IF(Values_Entered,A117+1,"") ->  | J118: =SUM($H$14:$H118) -> 0
A119: =IF(Values_Entered,A118+1,"") ->  | J119: =SUM($H$14:$H119) -> 0
A120: =IF(Values_Entered,A119+1,"") ->  | J120: =SUM($H$14:$H120) -> 0
A121: =IF(Values_Entered,A120+1,"") ->  | J121: =SUM($H$14:$H121) -> 0
A122: =IF(Values_Entered,A121+1,"") ->  | J122: =SUM($H$14:$H122) -> 0
A123: =IF(Values_Entered,A122+1,"") ->  | J123: =SUM($H$14:$H123) -> 0
A124: =IF(Values_Entered,A123+1,"") ->  | J124: =SUM($H$14:$H124) -> 0
A125: =IF(Values_Entered,A124+1,"") ->  | J125: =SUM($H$14:$H125) -> 0
A126: =IF(Values_Entered,A125+1,"") ->  | J126: =SUM($H$14:$H126) -> 0
A127: =IF(Values_Entered,A126+1,"") ->  | J127: =SUM($H$14:$H127) -> 0
A128: =IF(Values_Entered,A127+1,"") ->  | J128: =SUM($H$14:$H128) -> 0
A129: =IF(Values_Entered,A128+1,"") ->  | J129: =SUM($H$14:$H129) -> 0
A130: =IF(Values_Entered,A129+1,"") ->  | J130: =SUM($H$14:$H130) -> 0
A131: =IF(Values_Entered,A130+1,"") ->  | J131: =SUM($H$14:$H131) -> 0
A132: =IF(Values_Entered,A131+1,"") ->  | J132: =SUM($H$14:$H132) -> 0
A133: =IF(Values_Entered,A132+1,"") ->  | J133: =SUM($H$14:$H133) -> 0
A134: =IF(Values_Entered,A133+1,"") ->  | J134: =SUM($H$14:$H134) -> 0
A135: =IF(Values_Entered,A134+1,"") ->  | J135: =SUM($H$14:$H135) -> 0
A136: =IF(Values_Entered,A135+1,"") ->  | J136: =SUM($H$14:$H136) -> 0
A137: =IF(Values_Entered,A136+1,"") ->  | J137: =SUM($H$14:$H137) -> 0
A138: =IF(Values_Entered,A137+1,"") ->  | J138: =SUM($H$14:$H138) -> 0
A139: =IF(Values_Entered,A138+1,"") ->  | J139: =SUM($H$14:$H139) -> 0
A140: =IF(Values_Entered,A139+1,"") ->  | J140: =SUM($H$14:$H140) -> 0
A141: =IF(Values_Entered,A140+1,"") ->  | J141: =SUM($H$14:$H141) -> 0
A142: =IF(Values_Entered,A141+1,"") ->  | B142: =IF(Pay_Num<>"",DATE(YEAR(Loan_Start),MONTH(Loan_Start)+(Pay_Num)*12/Num_Pmt_Per_Year,DAY(Loan_Start)),"") ->  | E142: =IF(AND(Pay_Num<>"",Sched_Pay+Scheduled_Extra_Payments<Beg_Bal),Scheduled_Extra_Payments,IF(AND(Pay_Num<>"",Beg_Bal-Sched_Pay>0),Beg_Bal-Sched_Pay,IF(Pay_Num<>"",0,""))) ->  | F142: =IF(AND(Pay_Num<>"",Sched_Pay+Extra_Pay<Beg_Bal),Sched_Pay+Extra_Pay,IF(Pay_Num<>"",Beg_Bal,"")) ->  | I142: =IF(AND(Pay_Num<>"",Sched_Pay+Extra_Pay<Beg_Bal),Beg_Bal-Princ,IF(Pay_Num<>"",0,"")) ->  | J142: =SUM($H$14:$H142) -> 0
A143: =IF(Values_Entered,A142+1,"") ->  | C143: =IF(Pay_Num<>"",I142,"") ->  | G143: =IF(Pay_Num<>"",Total_Pay-Int,"") ->  | H143: =IF(Pay_Num<>"",Beg_Bal*Interest_Rate/Num_Pmt_Per_Year,"") ->  | J143: =SUM($H$14:$H143) -> 0
A144: =IF(Values_Entered,A143+1,"") ->  | D144: =IF(Pay_Num<>"",Scheduled_Monthly_Payment,"") ->  | J144: =SUM($H$14:$H144) -> 0
A145: =IF(Values_Entered,A144+1,"") ->  | J145: =SUM($H$14:$H145) -> 0
A146: =IF(Values_Entered,A145+1,"") ->  | J146: =SUM($H$14:$H146) -> 0
A147: =IF(Values_Entered,A146+1,"") ->  | J147: =SUM($H$14:$H147) -> 0
A148: =IF(Values_Entered,A147+1,"") ->  | J148: =SUM($H$14:$H148) -> 0
A149: =IF(Values_Entered,A148+1,"") ->  | J149: =SUM($H$14:$H149) -> 0
A150: =IF(Values_Entered,A149+1,"") ->  | J150: =SUM($H$14:$H150) -> 0
A151: =IF(Values_Entered,A150+1,"") ->  | J151: =SUM($H$14:$H151) -> 0
A152: =IF(Values_Entered,A151+1,"") ->  | J152: =SUM($H$14:$H152) -> 0
A153: =IF(Values_Entered,A152+1,"") ->  | J153: =SUM($H$14:$H153) -> 0
A154: =IF(Values_Entered,A153+1,"") ->  | J154: =SUM($H$14:$H154) -> 0
A155: =IF(Values_Entered,A154+1,"") ->  | J155: =SUM($H$14:$H155) -> 0
A156: =IF(Values_Entered,A155+1,"") ->  | J156: =SUM($H$14:$H156) -> 0
A157: =IF(Values_Entered,A156+1,"") ->  | J157: =SUM($H$14:$H157) -> 0
A158: =IF(Values_Entered,A157+1,"") ->  | J158: =SUM($H$14:$H158) -> 0
A159: =IF(Values_Entered,A158+1,"") ->  | J159: =SUM($H$14:$H159) -> 0
A160: =IF(Values_Entered,A159+1,"") ->  | J160: =SUM($H$14:$H160) -> 0
A161: =IF(Values_Entered,A160+1,"") ->  | J161: =SUM($H$14:$H161) -> 0
A162: =IF(Values_Entered,A161+1,"") ->  | J162: =SUM($H$14:$H162) -> 0
A163: =IF(Values_Entered,A162+1,"") ->  | J163: =SUM($H$14:$H163) -> 0
A164: =IF(Values_Entered,A163+1,"") ->  | J164: =SUM($H$14:$H164) -> 0
A165: =IF(Values_Entered,A164+1,"") ->  | J165: =SUM($H$14:$H165) -> 0
A166: =IF(Values_Entered,A165+1,"") ->  | J166: =SUM($H$14:$H166) -> 0
A167: =IF(Values_Entered,A166+1,"") ->  | J167: =SUM($H$14:$H167) -> 0
A168: =IF(Values_Entered,A167+1,"") ->  | J168: =SUM($H$14:$H168) -> 0
A169: =IF(Values_Entered,A168+1,"") ->  | J169: =SUM($H$14:$H169) -> 0
A170: =IF(Values_Entered,A169+1,"") ->  | J170: =SUM($H$14:$H170) -> 0
A171: =IF(Values_Entered,A170+1,"") ->  | J171: =SUM($H$14:$H171) -> 0
A172: =IF(Values_Entered,A171+1,"") ->  | J172: =SUM($H$14:$H172) -> 0
A173: =IF(Values_Entered,A172+1,"") ->  | J173: =SUM($H$14:$H173) -> 0
A174: =IF(Values_Entered,A173+1,"") ->  | J174: =SUM($H$14:$H174) -> 0
A175: =IF(Values_Entered,A174+1,"") ->  | J175: =SUM($H$14:$H175) -> 0
A176: =IF(Values_Entered,A175+1,"") ->  | J176: =SUM($H$14:$H176) -> 0
A177: =IF(Values_Entered,A176+1,"") ->  | J177: =SUM($H$14:$H177) -> 0
A178: =IF(Values_Entered,A177+1,"") ->  | J178: =SUM($H$14:$H178) -> 0
A179: =IF(Values_Entered,A178+1,"") ->  | J179: =SUM($H$14:$H179) -> 0
A180: =IF(Values_Entered,A179+1,"") ->  | J180: =SUM($H$14:$H180) -> 0
A181: =IF(Values_Entered,A180+1,"") ->  | J181: =SUM($H$14:$H181) -> 0
A182: =IF(Values_Entered,A181+1,"") ->  | J182: =SUM($H$14:$H182) -> 0
A183: =IF(Values_Entered,A182+1,"") ->  | J183: =SUM($H$14:$H183) -> 0
A184: =IF(Values_Entered,A183+1,"") ->  | J184: =SUM($H$14:$H184) -> 0
A185: =IF(Values_Entered,A184+1,"") ->  | J185: =SUM($H$14:$H185) -> 0
A186: =IF(Values_Entered,A185+1,"") ->  | J186: =SUM($H$14:$H186) -> 0
A187: =IF(Values_Entered,A186+1,"") ->  | J187: =SUM($H$14:$H187) -> 0
A188: =IF(Values_Entered,A187+1,"") ->  | J188: =SUM($H$14:$H188) -> 0
A189: =IF(Values_Entered,A188+1,"") ->  | J189: =SUM($H$14:$H189) -> 0
A190: =IF(Values_Entered,A189+1,"") ->  | J190: =SUM($H$14:$H190) -> 0
A191: =IF(Values_Entered,A190+1,"") ->  | J191: =SUM($H$14:$H191) -> 0
A192: =IF(Values_Entered,A191+1,"") ->  | J192: =SUM($H$14:$H192) -> 0
A193: =IF(Values_Entered,A192+1,"") ->  | J193: =SUM($H$14:$H193) -> 0
A194: =IF(Values_Entered,A193+1,"") ->  | J194: =SUM($H$14:$H194) -> 0
A195: =IF(Values_Entered,A194+1,"") ->  | J195: =SUM($H$14:$H195) -> 0
A196: =IF(Values_Entered,A195+1,"") ->  | J196: =SUM($H$14:$H196) -> 0
A197: =IF(Values_Entered,A196+1,"") ->  | J197: =SUM($H$14:$H197) -> 0
A198: =IF(Values_Entered,A197+1,"") ->  | J198: =SUM($H$14:$H198) -> 0
A199: =IF(Values_Entered,A198+1,"") ->  | J199: =SUM($H$14:$H199) -> 0
A200: =IF(Values_Entered,A199+1,"") ->  | J200: =SUM($H$14:$H200) -> 0
A201: =IF(Values_Entered,A200+1,"") ->  | J201: =SUM($H$14:$H201) -> 0
A202: =IF(Values_Entered,A201+1,"") ->  | J202: =SUM($H$14:$H202) -> 0
A203: =IF(Values_Entered,A202+1,"") ->  | J203: =SUM($H$14:$H203) -> 0
... 170 more rows

Sheet Loan Repayment Diesel (hidden)
A1: Loan Repayment: | F1: =Input!D58 -> Grid powered irrigation system
A2: Bank: | B2: =Input!E117 -> 0
B3: Enter Values | F3: Loan Summary
C4: Loan Amount | D4: =Input!E114 -> 0 | G4: Scheduled Payment | H4: =IF(Values_Entered,-PMT(Interest_Rate/Num_Pmt_Per_Year,Loan_Years*Num_Pmt_Per_Year,Loan_Amount),"0") -> 0
C5: Annual Interest Rate | D5: =Input!E115 -> 0 | G5: Scheduled Number of Payments | H5: =IF(Values_Entered,Loan_Years*Num_Pmt_Per_Year,"") -> 
C6: Loan Period in Years | D6: =Input!E116 -> 0 | G6: Actual Number of Payments | H6: =IF(Values_Entered,Number_of_Payments,"") -> 
C7: Number of Payments Per Year | D7: 1 | G7: Total Early Payments | H7: =IF(Values_Entered,SUMIF(Beg_Bal,">0",Extra_Pay),"") -> 
C8: Start Date of Loan | D8: 2017-01-01 | G8: Total Interest | H8: =IF(Values_Entered,SUMIF(Beg_Bal,">0",Int),"") -> 
C9: Optional Extra Payments | D9: 0
A12: PmtNo. | B12: Payment Date | C12: Beginning Balance | D12: Scheduled Payment | E12: Extra Payment | F12: Total Payment | G12: Principal | H12: Interest | I12: Ending Balance | J12: Cumulative Interest
A14: =IF(Values_Entered,1,"") ->  | B14: =IF(Pay_Num<>"",DATE(YEAR(Loan_Start),MONTH(Loan_Start)+(Pay_Num)*12/Num_Pmt_Per_Year,DAY(Loan_Start)),"") ->  | C14: =IF(Values_Entered,Loan_Amount,"") ->  | D14: =IF(Pay_Num<>"",Scheduled_Monthly_Payment,"") ->  | E14: =IF(AND(Pay_Num<>"",Sched_Pay+Scheduled_Extra_Payments<Beg_Bal),Scheduled_Extra_Payments,IF(AND(Pay_Num<>"",Beg_Bal-Sched_Pay>0),Beg_Bal-Sched_Pay,IF(Pay_Num<>"",0,""))) ->  | F14: =IF(AND(Pay_Num<>"",Sched_Pay+Extra_Pay<Beg_Bal),Sched_Pay+Extra_Pay,IF(Pay_Num<>"",Beg_Bal,"")) ->  | G14: =IF(Pay_Num<>"",Total_Pay-Int,"") ->  | H14: =IF(Pay_Num<>"",Beg_Bal*(Interest_Rate/Num_Pmt_Per_Year),"") ->  | I14: =IF(AND(Pay_Num<>"",Sched_Pay+Extra_Pay<Beg_Bal),Beg_Bal-Princ,IF(Pay_Num<>"",0,"")) ->  | J14: =SUM($H$14:$H14) -> 0
A15: =IF(Values_Entered,A14+1,"") ->  | C15: =IF(Pay_Num<>"",I14,"") ->  | D15: =IF(Pay_Num<>"",Scheduled_Monthly_Payment,"") ->  | G15: =IF(Pay_Num<>"",Total_Pay-Int,"") ->  | H15: =IF(Pay_Num<>"",Beg_Bal*Interest_Rate/Num_Pmt_Per_Year,"") ->  | J15: =SUM($H$14:$H15) -> 0
A16: =IF(Values_Entered,A15+1,"") ->  | D16: =IF(Pay_Num<>"",Scheduled_Monthly_Payment,"") ->  | J16: =SUM($H$14:$H16) -> 0
A17: =IF(Values_Entered,A16+1,"") ->  | D17: =IF(Pay_Num<>"",Scheduled_Monthly_Payment,"") ->  | J17: =SUM($H$14:$H17) -> 0
A18: =IF(Values_Entered,A17+1,"") ->  | J18: =SUM($H$14:$H18) -> 0
A19: =IF(Values_Entered,A18+1,"") ->  | J19: =SUM($H$14:$H19) -> 0
A20: =IF(Values_Entered,A19+1,"") ->  | J20: =SUM($H$14:$H20) -> 0
A21: =IF(Values_Entered,A20+1,"") ->  | J21: =SUM($H$14:$H21) -> 0
A22: =IF(Values_Entered,A21+1,"") ->  | J22: =SUM($H$14:$H22) -> 0
A23: =IF(Values_Entered,A22+1,"") ->  | J23: =SUM($H$14:$H23) -> 0
A24: =IF(Values_Entered,A23+1,"") ->  | J24: =SUM($H$14:$H24) -> 0
A25: =IF(Values_Entered,A24+1,"") ->  | J25: =SUM($H$14:$H25) -> 0
A26: =IF(Values_Entered,A25+1,"") ->  | J26: =SUM($H$14:$H26) -> 0
A27: =IF(Values_Entered,A26+1,"") ->  | J27: =SUM($H$14:$H27) -> 0
A28: =IF(Values_Entered,A27+1,"") ->  | J28: =SUM($H$14:$H28) -> 0
A29: =IF(Values_Entered,A28+1,"") ->  | J29: =SUM($H$14:$H29) -> 0
A30: =IF(Values_Entered,A29+1,"") ->  | J30: =SUM($H$14:$H30) -> 0
A31: =IF(Values_Entered,A30+1,"") ->  | J31: =SUM($H$14:$H31) -> 0
A32: =IF(Values_Entered,A31+1,"") ->  | J32: =SUM($H$14:$H32) -> 0
A33: =IF(Values_Entered,A32+1,"") ->  | J33: =SUM($H$14:$H33) -> 0
A34: =IF(Values_Entered,A33+1,"") ->  | J34: =SUM($H$14:$H34) -> 0
A35: =IF(Values_Entered,A34+1,"") ->  | J35: =SUM($H$14:$H35) -> 0
A36: =IF(Values_Entered,A35+1,"") ->  | J36: =SUM($H$14:$H36) -> 0
A37: =IF(Values_Entered,A36+1,"") ->  | J37: =SUM($H$14:$H37) -> 0
A38: =IF(Values_Entered,A37+1,"") ->  | J38: =SUM($H$14:$H38) -> 0
A39: =IF(Values_Entered,A38+1,"") ->  | J39: =SUM($H$14:$H39) -> 0
A40: =IF(Values_Entered,A39+1,"") ->  | J40: =SUM($H$14:$H40) -> 0
A41: =IF(Values_Entered,A40+1,"") ->  | J41: =SUM($H$14:$H41) -> 0
A42: =IF(Values_Entered,A41+1,"") ->  | J42: =SUM($H$14:$H42) -> 0
A43: =IF(Values_Entered,A42+1,"") ->  | J43: =SUM($H$14:$H43) -> 0
A44: =IF(Values_Entered,A43+1,"") ->  | J44: =SUM($H$14:$H44) -> 0
A45: =IF(Values_Entered,A44+1,"") ->  | J45: =SUM($H$14:$H45) -> 0
A46: =IF(Values_Entered,A45+1,"") ->  | J46: =SUM($H$14:$H46) -> 0
A47: =IF(Values_Entered,A46+1,"") ->  | J47: =SUM($H$14:$H47) -> 0
A48: =IF(Values_Entered,A47+1,"") ->  | J48: =SUM($H$14:$H48) -> 0
A49: =IF(Values_Entered,A48+1,"") ->  | J49: =SUM($H$14:$H49) -> 0
A50: =IF(Values_Entered,A49+1,"") ->  | J50: =SUM($H$14:$H50) -> 0
A51: =IF(Values_Entered,A50+1,"") ->  | J51: =SUM($H$14:$H51) -> 0
A52: =IF(Values_Entered,A51+1,"") ->  | J52: =SUM($H$14:$H52) -> 0
A53: =IF(Values_Entered,A52+1,"") ->  | J53: =SUM($H$14:$H53) -> 0
A54: =IF(Values_Entered,A53+1,"") ->  | J54: =SUM($H$14:$H54) -> 0
A55: =IF(Values_Entered,A54+1,"") ->  | J55: =SUM($H$14:$H55) -> 0
A56: =IF(Values_Entered,A55+1,"") ->  | J56: =SUM($H$14:$H56) -> 0
A57: =IF(Values_Entered,A56+1,"") ->  | J57: =SUM($H$14:$H57) -> 0
A58: =IF(Values_Entered,A57+1,"") ->  | J58: =SUM($H$14:$H58) -> 0
A59: =IF(Values_Entered,A58+1,"") ->  | J59: =SUM($H$14:$H59) -> 0
A60: =IF(Values_Entered,A59+1,"") ->  | J60: =SUM($H$14:$H60) -> 0
A61: =IF(Values_Entered,A60+1,"") ->  | J61: =SUM($H$14:$H61) -> 0
A62: =IF(Values_Entered,A61+1,"") ->  | J62: =SUM($H$14:$H62) -> 0
A63: =IF(Values_Entered,A62+1,"") ->  | J63: =SUM($H$14:$H63) -> 0
A64: =IF(Values_Entered,A63+1,"") ->  | J64: =SUM($H$14:$H64) -> 0
A65: =IF(Values_Entered,A64+1,"") ->  | J65: =SUM($H$14:$H65) -> 0
A66: =IF(Values_Entered,A65+1,"") ->  | J66: =SUM($H$14:$H66) -> 0
A67: =IF(Values_Entered,A66+1,"") ->  | J67: =SUM($H$14:$H67) -> 0
A68: =IF(Values_Entered,A67+1,"") ->  | J68: =SUM($H$14:$H68) -> 0
A69: =IF(Values_Entered,A68+1,"") ->  | J69: =SUM($H$14:$H69) -> 0
A70: =IF(Values_Entered,A69+1,"") ->  | J70: =SUM($H$14:$H70) -> 0
A71: =IF(Values_Entered,A70+1,"") ->  | J71: =SUM($H$14:$H71) -> 0
A72: =IF(Values_Entered,A71+1,"") ->  | J72: =SUM($H$14:$H72) -> 0
A73: =IF(Values_Entered,A72+1,"") ->  | J73: =SUM($H$14:$H73) -> 0
A74: =IF(Values_Entered,A73+1,"") ->  | J74: =SUM($H$14:$H74) -> 0
A75: =IF(Values_Entered,A74+1,"") ->  | J75: =SUM($H$14:$H75) -> 0
A76: =IF(Values_Entered,A75+1,"") ->  | J76: =SUM($H$14:$H76) -> 0
A77: =IF(Values_Entered,A76+1,"") ->  | J77: =SUM($H$14:$H77) -> 0
A78: =IF(Values_Entered,A77+1,"") ->  | B78: =IF(Pay_Num<>"",DATE(YEAR(Loan_Start),MONTH(Loan_Start)+(Pay_Num)*12/Num_Pmt_Per_Year,DAY(Loan_Start)),"") ->  | E78: =IF(AND(Pay_Num<>"",Sched_Pay+Scheduled_Extra_Payments<Beg_Bal),Scheduled_Extra_Payments,IF(AND(Pay_Num<>"",Beg_Bal-Sched_Pay>0),Beg_Bal-Sched_Pay,IF(Pay_Num<>"",0,""))) ->  | F78: =IF(AND(Pay_Num<>"",Sched_Pay+Extra_Pay<Beg_Bal),Sched_Pay+Extra_Pay,IF(Pay_Num<>"",Beg_Bal,"")) ->  | I78: =IF(AND(Pay_Num<>"",Sched_Pay+Extra_Pay<Beg_Bal),Beg_Bal-Princ,IF(Pay_Num<>"",0,"")) ->  | J78: =SUM($H$14:$H78) -> 0
A79: =IF(Values_Entered,A78+1,"") ->  | C79: =IF(Pay_Num<>"",I78,"") ->  | G79: =IF(Pay_Num<>"",Total_Pay-Int,"") ->  | H79: =IF(Pay_Num<>"",Beg_Bal*Interest_Rate/Num_Pmt_Per_Year,"") ->  | J79: =SUM($H$14:$H79) -> 0
A80: =IF(Values_Entered,A79+1,"") ->  | D80: =IF(Pay_Num<>"",Scheduled_Monthly_Payment,"") ->  | J80: =SUM($H$14:$H80) -> 0
A81: =IF(Values_Entered,A80+1,"") ->  | J81: =SUM($H$14:$H81) -> 0
A82: =IF(Values_Entered,A81+1,"") ->  | J82: =SUM($H$14:$H82) -> 0
A83: =IF(Values_Entered,A82+1,"") ->  | J83: =SUM($H$14:$H83) -> 0
A84: =IF(Values_Entered,A83+1,"") ->  | J84: =SUM($H$14:$H84) -> 0
A85: =IF(Values_Entered,A84+1,"") ->  | J85: =SUM($H$14:$H85) -> 0
A86: =IF(Values_Entered,A85+1,"") ->  | J86: =SUM($H$14:$H86) -> 0
A87: =IF(Values_Entered,A86+1,"") ->  | J87: =SUM($H$14:$H87) -> 0
A88: =IF(Values_Entered,A87+1,"") ->  | J88: =SUM($H$14:$H88) -> 0
A89: =IF(Values_Entered,A88+1,"") ->  | J89: =SUM($H$14:$H89) -> 0
A90: =IF(Values_Entered,A89+1,"") ->  | J90: =SUM($H$14:$H90) -> 0
A91: =IF(Values_Entered,A90+1,"") ->  | J91: =SUM($H$14:$H91) -> 0
A92: =IF(Values_Entered,A91+1,"") ->  | J92: =SUM($H$14:$H92) -> 0
A93: =IF(Values_Entered,A92+1,"") ->  | J93: =SUM($H$14:$H93) -> 0
A94: =IF(Values_Entered,A93+1,"") ->  | J94: =SUM($H$14:$H94) -> 0
A95: =IF(Values_Entered,A94+1,"") ->  | J95: =SUM($H$14:$H95) -> 0
A96: =IF(Values_Entered,A95+1,"") ->  | J96: =SUM($H$14:$H96) -> 0
A97: =IF(Values_Entered,A96+1,"") ->  | J97: =SUM($H$14:$H97) -> 0
A98: =IF(Values_Entered,A97+1,"") ->  | J98: =SUM($H$14:$H98) -> 0
A99: =IF(Values_Entered,A98+1,"") ->  | J99: =SUM($H$14:$H99) -> 0
A100: =IF(Values_Entered,A99+1,"") ->  | J100: =SUM($H$14:$H100) -> 0
A101: =IF(Values_Entered,A100+1,"") ->  | J101: =SUM($H$14:$H101) -> 0
A102: =IF(Values_Entered,A101+1,"") ->  | J102: =SUM($H$14:$H102) -> 0
A103: =IF(Values_Entered,A102+1,"") ->  | J103: =SUM($H$14:$H103) -> 0
A104: =IF(Values_Entered,A103+1,"") ->  | J104: =SUM($H$14:$H104) -> 0
A105: =IF(Values_Entered,A104+1,"") ->  | J105: =SUM($H$14:$H105) -> 0
A106: =IF(Values_Entered,A105+1,"") ->  | J106: =SUM($H$14:$H106) -> 0
A107: =IF(Values_Entered,A106+1,"") ->  | J107: =SUM($H$14:$H107) -> 0
A108: =IF(Values_Entered,A107+1,"") ->  | J108: =SUM($H$14:$H108) -> 0
A109: =IF(Values_Entered,A108+1,"") ->  | J109: =SUM($H$14:$H109) -> 0
A110: =IF(Values_Entered,A109+1,"") ->  | J110: =SUM($H$14:$H110) -> 0
A111: =IF(Values_Entered,A110+1,"") ->  | J111: =SUM($H$14:$H111) -> 0
A112: =IF(Values_Entered,A111+1,"") ->  | J112: =SUM($H$14:$H112) -> 0
A113: =IF(Values_Entered,A112+1,"") ->  | J113: =SUM($H$14:$H113) -> 0
A114: =IF(Values_Entered,A113+1,"") ->  | J114: =SUM($H$14:$H114) -> 0
A115: =IF(Values_Entered,A114+1,"") ->  | J115: =SUM($H$14:$H115) -> 0
A116: =IF(Values_Entered,A115+1,"") ->  | J116: =SUM($H$14:$H116) -> 0
A117: =IF(Values_Entered,A116+1,"") ->  | J117: =SUM($H$14:$H117) -> 0
A118: =IF(Values_Entered,A117+1,"") ->  | J118: =SUM($H$14:$H118) -> 0
A119: =IF(Values_Entered,A118+1,"") ->  | J119: =SUM($H$14:$H119) -> 0
A120: =IF(Values_Entered,A119+1,"") ->  | J120: =SUM($H$14:$H120) -> 0
A121: =IF(Values_Entered,A120+1,"") ->  | J121: =SUM($H$14:$H121) -> 0
A122: =IF(Values_Entered,A121+1,"") ->  | J122: =SUM($H$14:$H122) -> 0
A123: =IF(Values_Entered,A122+1,"") ->  | J123: =SUM($H$14:$H123) -> 0
A124: =IF(Values_Entered,A123+1,"") ->  | J124: =SUM($H$14:$H124) -> 0
A125: =IF(Values_Entered,A124+1,"") ->  | J125: =SUM($H$14:$H125) -> 0
A126: =IF(Values_Entered,A125+1,"") ->  | J126: =SUM($H$14:$H126) -> 0
A127: =IF(Values_Entered,A126+1,"") ->  | J127: =SUM($H$14:$H127) -> 0
A128: =IF(Values_Entered,A127+1,"") ->  | J128: =SUM($H$14:$H128) -> 0
A129: =IF(Values_Entered,A128+1,"") ->  | J129: =SUM($H$14:$H129) -> 0
A130: =IF(Values_Entered,A129+1,"") ->  | J130: =SUM($H$14:$H130) -> 0
A131: =IF(Values_Entered,A130+1,"") ->  | J131: =SUM($H$14:$H131) -> 0
A132: =IF(Values_Entered,A131+1,"") ->  | J132: =SUM($H$14:$H132) -> 0
A133: =IF(Values_Entered,A132+1,"") ->  | J133: =SUM($H$14:$H133) -> 0
A134: =IF(Values_Entered,A133+1,"") ->  | J134: =SUM($H$14:$H134) -> 0
A135: =IF(Values_Entered,A134+1,"") ->  | J135: =SUM($H$14:$H135) -> 0
A136: =IF(Values_Entered,A135+1,"") ->  | J136: =SUM($H$14:$H136) -> 0
A137: =IF(Values_Entered,A136+1,"") ->  | J137: =SUM($H$14:$H137) -> 0
A138: =IF(Values_Entered,A137+1,"") ->  | J138: =SUM($H$14:$H138) -> 0
A139: =IF(Values_Entered,A138+1,"") ->  | J139: =SUM($H$14:$H139) -> 0
A140: =IF(Values_Entered,A139+1,"") ->  | J140: =SUM($H$14:$H140) -> 0
A141: =IF(Values_Entered,A140+1,"") ->  | J141: =SUM($H$14:$H141) -> 0
A142: =IF(Values_Entered,A141+1,"") ->  | B142: =IF(Pay_Num<>"",DATE(YEAR(Loan_Start),MONTH(Loan_Start)+(Pay_Num)*12/Num_Pmt_Per_Year,DAY(Loan_Start)),"") ->  | E142: =IF(AND(Pay_Num<>"",Sched_Pay+Scheduled_Extra_Payments<Beg_Bal),Scheduled_Extra_Payments,IF(AND(Pay_Num<>"",Beg_Bal-Sched_Pay>0),Beg_Bal-Sched_Pay,IF(Pay_Num<>"",0,""))) ->  | F142: =IF(AND(Pay_Num<>"",Sched_Pay+Extra_Pay<Beg_Bal),Sched_Pay+Extra_Pay,IF(Pay_Num<>"",Beg_Bal,"")) ->  | I142: =IF(AND(Pay_Num<>"",Sched_Pay+Extra_Pay<Beg_Bal),Beg_Bal-Princ,IF(Pay_Num<>"",0,"")) ->  | J142: =SUM($H$14:$H142) -> 0
A143: =IF(Values_Entered,A142+1,"") ->  | C143: =IF(Pay_Num<>"",I142,"") ->  | G143: =IF(Pay_Num<>"",Total_Pay-Int,"") ->  | H143: =IF(Pay_Num<>"",Beg_Bal*Interest_Rate/Num_Pmt_Per_Year,"") ->  | J143: =SUM($H$14:$H143) -> 0
A144: =IF(Values_Entered,A143+1,"") ->  | D144: =IF(Pay_Num<>"",Scheduled_Monthly_Payment,"") ->  | J144: =SUM($H$14:$H144) -> 0
A145: =IF(Values_Entered,A144+1,"") ->  | J145: =SUM($H$14:$H145) -> 0
A146: =IF(Values_Entered,A145+1,"") ->  | J146: =SUM($H$14:$H146) -> 0
A147: =IF(Values_Entered,A146+1,"") ->  | J147: =SUM($H$14:$H147) -> 0
A148: =IF(Values_Entered,A147+1,"") ->  | J148: =SUM($H$14:$H148) -> 0
A149: =IF(Values_Entered,A148+1,"") ->  | J149: =SUM($H$14:$H149) -> 0
A150: =IF(Values_Entered,A149+1,"") ->  | J150: =SUM($H$14:$H150) -> 0
A151: =IF(Values_Entered,A150+1,"") ->  | J151: =SUM($H$14:$H151) -> 0
A152: =IF(Values_Entered,A151+1,"") ->  | J152: =SUM($H$14:$H152) -> 0
A153: =IF(Values_Entered,A152+1,"") ->  | J153: =SUM($H$14:$H153) -> 0
A154: =IF(Values_Entered,A153+1,"") ->  | J154: =SUM($H$14:$H154) -> 0
A155: =IF(Values_Entered,A154+1,"") ->  | J155: =SUM($H$14:$H155) -> 0
A156: =IF(Values_Entered,A155+1,"") ->  | J156: =SUM($H$14:$H156) -> 0
A157: =IF(Values_Entered,A156+1,"") ->  | J157: =SUM($H$14:$H157) -> 0
A158: =IF(Values_Entered,A157+1,"") ->  | J158: =SUM($H$14:$H158) -> 0
A159: =IF(Values_Entered,A158+1,"") ->  | J159: =SUM($H$14:$H159) -> 0
A160: =IF(Values_Entered,A159+1,"") ->  | J160: =SUM($H$14:$H160) -> 0
A161: =IF(Values_Entered,A160+1,"") ->  | J161: =SUM($H$14:$H161) -> 0
A162: =IF(Values_Entered,A161+1,"") ->  | J162: =SUM($H$14:$H162) -> 0
A163: =IF(Values_Entered,A162+1,"") ->  | J163: =SUM($H$14:$H163) -> 0
A164: =IF(Values_Entered,A163+1,"") ->  | J164: =SUM($H$14:$H164) -> 0
A165: =IF(Values_Entered,A164+1,"") ->  | J165: =SUM($H$14:$H165) -> 0
A166: =IF(Values_Entered,A165+1,"") ->  | J166: =SUM($H$14:$H166) -> 0
A167: =IF(Values_Entered,A166+1,"") ->  | J167: =SUM($H$14:$H167) -> 0
A168: =IF(Values_Entered,A167+1,"") ->  | J168: =SUM($H$14:$H168) -> 0
A169: =IF(Values_Entered,A168+1,"") ->  | J169: =SUM($H$14:$H169) -> 0
A170: =IF(Values_Entered,A169+1,"") ->  | J170: =SUM($H$14:$H170) -> 0
A171: =IF(Values_Entered,A170+1,"") ->  | J171: =SUM($H$14:$H171) -> 0
A172: =IF(Values_Entered,A171+1,"") ->  | J172: =SUM($H$14:$H172) -> 0
A173: =IF(Values_Entered,A172+1,"") ->  | J173: =SUM($H$14:$H173) -> 0
A174: =IF(Values_Entered,A173+1,"") ->  | J174: =SUM($H$14:$H174) -> 0
A175: =IF(Values_Entered,A174+1,"") ->  | J175: =SUM($H$14:$H175) -> 0
A176: =IF(Values_Entered,A175+1,"") ->  | J176: =SUM($H$14:$H176) -> 0
A177: =IF(Values_Entered,A176+1,"") ->  | J177: =SUM($H$14:$H177) -> 0
A178: =IF(Values_Entered,A177+1,"") ->  | J178: =SUM($H$14:$H178) -> 0
A179: =IF(Values_Entered,A178+1,"") ->  | J179: =SUM($H$14:$H179) -> 0
A180: =IF(Values_Entered,A179+1,"") ->  | J180: =SUM($H$14:$H180) -> 0
A181: =IF(Values_Entered,A180+1,"") ->  | J181: =SUM($H$14:$H181) -> 0
A182: =IF(Values_Entered,A181+1,"") ->  | J182: =SUM($H$14:$H182) -> 0
A183: =IF(Values_Entered,A182+1,"") ->  | J183: =SUM($H$14:$H183) -> 0
A184: =IF(Values_Entered,A183+1,"") ->  | J184: =SUM($H$14:$H184) -> 0
A185: =IF(Values_Entered,A184+1,"") ->  | J185: =SUM($H$14:$H185) -> 0
A186: =IF(Values_Entered,A185+1,"") ->  | J186: =SUM($H$14:$H186) -> 0
A187: =IF(Values_Entered,A186+1,"") ->  | J187: =SUM($H$14:$H187) -> 0
A188: =IF(Values_Entered,A187+1,"") ->  | J188: =SUM($H$14:$H188) -> 0
A189: =IF(Values_Entered,A188+1,"") ->  | J189: =SUM($H$14:$H189) -> 0
A190: =IF(Values_Entered,A189+1,"") ->  | J190: =SUM($H$14:$H190) -> 0
A191: =IF(Values_Entered,A190+1,"") ->  | J191: =SUM($H$14:$H191) -> 0
A192: =IF(Values_Entered,A191+1,"") ->  | J192: =SUM($H$14:$H192) -> 0
A193: =IF(Values_Entered,A192+1,"") ->  | J193: =SUM($H$14:$H193) -> 0
A194: =IF(Values_Entered,A193+1,"") ->  | J194: =SUM($H$14:$H194) -> 0
A195: =IF(Values_Entered,A194+1,"") ->  | J195: =SUM($H$14:$H195) -> 0
A196: =IF(Values_Entered,A195+1,"") ->  | J196: =SUM($H$14:$H196) -> 0
A197: =IF(Values_Entered,A196+1,"") ->  | J197: =SUM($H$14:$H197) -> 0
A198: =IF(Values_Entered,A197+1,"") ->  | J198: =SUM($H$14:$H198) -> 0
A199: =IF(Values_Entered,A198+1,"") ->  | J199: =SUM($H$14:$H199) -> 0
A200: =IF(Values_Entered,A199+1,"") ->  | J200: =SUM($H$14:$H200) -> 0
A201: =IF(Values_Entered,A200+1,"") ->  | J201: =SUM($H$14:$H201) -> 0
A202: =IF(Values_Entered,A201+1,"") ->  | J202: =SUM($H$14:$H202) -> 0
A203: =IF(Values_Entered,A202+1,"") ->  | J203: =SUM($H$14:$H203) -> 0
... 170 more rows
